{"text_format":"1","workbook":"xlsx","n_sheets":11,"sheets":["Data","Codes","Geschrapt","Pivot_Codes","Voorbeeld","Bestand","Rekening","Jaren","CodesClean","ToegestaneCombinaties","ICPExtra"],"not_rendered":{"charts":0,"images":1,"macros":1,"external_links":0,"defined_names":58,"comments":2,"pivot_tables":1},"unopened":[],"bounds":{"document_bytes":16777216,"sheet_cells":100000,"rows_first":2000,"rows_last":500,"rows_between":2000,"halvings":0,"cell_chars":16384,"cell_head_chars":4096},"cells_cut":0,"cells_raw":0,"read":"whole","date_system":"1900"}

{"sheet":"Data","index":0,"n_rows":9,"n_cols":16,"rows_kept":9,"cut":false,"hidden":false,"merged":[]}
["Reden beurzen","Partner","Naam","Betaal\njaar","Betaal\nmaand","Intake","Omschrijving","Budget\nplaats","Bedrag","Valuta","Verval\nDatum","IBAN","Extra_Omschrijving","Verantwoordelijke","Check IBAN","Check combinatie"]
[null,null,null,null,null,null,null,null,null,null,null,null,null,{"$f":"Gebruikersnaam","v":"BVELKENE"}]
[null,null,null,null,null,null,null,null,null,"EUR",{"$f":"IF(NOT(OR(ISBLANK(Table1[[#This Row],[Betaal\njaar]]),ISBLANK(Table1[[#This Row],[Betaal\nmaand]]))),VLOOKUP(Table1[[#This Row],[Betaal\nmaand]],Jaren!E:I,5,FALSE)&D3,\"\")","v":""},null,null,{"$f":"Gebruikersnaam","v":"BVELKENE"},{"$f":"IF(ISBLANK(Table1[[#This Row],[IBAN]]),\"\",ValidateIban(L3))","v":""},{"$f":"IF(NOT(ISERROR(IF(OR(LEFT(Table1[[#This Row],[Reden beurzen]],11)<>\"VLIR_ICP_1Y\",LEFT(Table1[[#This Row],[Reden beurzen]],11)<>\"VLIR_ICP_2Y\",LEFT(Table1[[#This Row],[Reden beurzen]],11)<>\"VLIR_ICP_3Y\"),VLOOKUP(Table1[[#This Row],[Reden beurzen]]&Table1[[#This Row],[Omschrijving]],Codes!C:C,1,FALSE)))),\"Bestaande combinatie\",\"Foutieve combinatie\")","v":"Foutieve combinatie"}]
[null,null,null,null,null,null,null,null,null,"EUR",{"$f":"IF(NOT(OR(ISBLANK(Table1[[#This Row],[Betaal\njaar]]),ISBLANK(Table1[[#This Row],[Betaal\nmaand]]))),VLOOKUP(Table1[[#This Row],[Betaal\nmaand]],Jaren!E:I,5,FALSE)&D4,\"\")","v":""},null,null,"BVELKENE",{"$f":"IF(ISBLANK(Table1[[#This Row],[IBAN]]),\"\",ValidateIban(L4))","v":""},{"$f":"IF(NOT(ISERROR(IF(OR(LEFT(Table1[[#This Row],[Reden beurzen]],11)<>\"VLIR_ICP_1Y\",LEFT(Table1[[#This Row],[Reden beurzen]],11)<>\"VLIR_ICP_2Y\",LEFT(Table1[[#This Row],[Reden beurzen]],11)<>\"VLIR_ICP_3Y\"),VLOOKUP(Table1[[#This Row],[Reden beurzen]]&Table1[[#This Row],[Omschrijving]],Codes!C:C,1,FALSE)))),\"Bestaande combinatie\",\"Foutieve combinatie\")","v":"Foutieve combinatie"}]
[null,null,null,null,null,null,null,null,null,"EUR",{"$f":"IF(NOT(OR(ISBLANK(Table1[[#This Row],[Betaal\njaar]]),ISBLANK(Table1[[#This Row],[Betaal\nmaand]]))),VLOOKUP(Table1[[#This Row],[Betaal\nmaand]],Jaren!E:I,5,FALSE)&D5,\"\")","v":""},null,null,"BVELKENE",{"$f":"IF(ISBLANK(Table1[[#This Row],[IBAN]]),\"\",ValidateIban(L5))","v":""},{"$f":"IF(NOT(ISERROR(IF(OR(LEFT(Table1[[#This Row],[Reden beurzen]],11)<>\"VLIR_ICP_1Y\",LEFT(Table1[[#This Row],[Reden beurzen]],11)<>\"VLIR_ICP_2Y\",LEFT(Table1[[#This Row],[Reden beurzen]],11)<>\"VLIR_ICP_3Y\"),VLOOKUP(Table1[[#This Row],[Reden beurzen]]&Table1[[#This Row],[Omschrijving]],Codes!C:C,1,FALSE)))),\"Bestaande combinatie\",\"Foutieve combinatie\")","v":"Foutieve combinatie"}]
[null,null,null,null,null,null,null,null,null,"EUR",{"$f":"IF(NOT(OR(ISBLANK(Table1[[#This Row],[Betaal\njaar]]),ISBLANK(Table1[[#This Row],[Betaal\nmaand]]))),VLOOKUP(Table1[[#This Row],[Betaal\nmaand]],Jaren!E:I,5,FALSE)&D6,\"\")","v":""},null,null,"BVELKENE",{"$f":"IF(ISBLANK(Table1[[#This Row],[IBAN]]),\"\",ValidateIban(L6))","v":""},{"$f":"IF(NOT(ISERROR(IF(OR(LEFT(Table1[[#This Row],[Reden beurzen]],11)<>\"VLIR_ICP_1Y\",LEFT(Table1[[#This Row],[Reden beurzen]],11)<>\"VLIR_ICP_2Y\",LEFT(Table1[[#This Row],[Reden beurzen]],11)<>\"VLIR_ICP_3Y\"),VLOOKUP(Table1[[#This Row],[Reden beurzen]]&Table1[[#This Row],[Omschrijving]],Codes!C:C,1,FALSE)))),\"Bestaande combinatie\",\"Foutieve combinatie\")","v":"Foutieve combinatie"}]
[null,null,null,null,null,null,null,null,null,"EUR",{"$f":"IF(NOT(OR(ISBLANK(Table1[[#This Row],[Betaal\njaar]]),ISBLANK(Table1[[#This Row],[Betaal\nmaand]]))),VLOOKUP(Table1[[#This Row],[Betaal\nmaand]],Jaren!E:I,5,FALSE)&D7,\"\")","v":""},null,null,"BVELKENE",{"$f":"IF(ISBLANK(Table1[[#This Row],[IBAN]]),\"\",ValidateIban(L7))","v":""},{"$f":"IF(NOT(ISERROR(IF(OR(LEFT(Table1[[#This Row],[Reden beurzen]],11)<>\"VLIR_ICP_1Y\",LEFT(Table1[[#This Row],[Reden beurzen]],11)<>\"VLIR_ICP_2Y\",LEFT(Table1[[#This Row],[Reden beurzen]],11)<>\"VLIR_ICP_3Y\"),VLOOKUP(Table1[[#This Row],[Reden beurzen]]&Table1[[#This Row],[Omschrijving]],Codes!C:C,1,FALSE)))),\"Bestaande combinatie\",\"Foutieve combinatie\")","v":"Foutieve combinatie"}]
[null,null,null,null,null,null,null,null,null,"EUR",{"$f":"IF(NOT(OR(ISBLANK(Table1[[#This Row],[Betaal\njaar]]),ISBLANK(Table1[[#This Row],[Betaal\nmaand]]))),VLOOKUP(Table1[[#This Row],[Betaal\nmaand]],Jaren!E:I,5,FALSE)&D8,\"\")","v":""},null,null,"BVELKENE",{"$f":"IF(ISBLANK(Table1[[#This Row],[IBAN]]),\"\",ValidateIban(L8))","v":""},{"$f":"IF(NOT(ISERROR(IF(OR(LEFT(Table1[[#This Row],[Reden beurzen]],11)<>\"VLIR_ICP_1Y\",LEFT(Table1[[#This Row],[Reden beurzen]],11)<>\"VLIR_ICP_2Y\",LEFT(Table1[[#This Row],[Reden beurzen]],11)<>\"VLIR_ICP_3Y\"),VLOOKUP(Table1[[#This Row],[Reden beurzen]]&Table1[[#This Row],[Omschrijving]],Codes!C:C,1,FALSE)))),\"Bestaande combinatie\",\"Foutieve combinatie\")","v":"Foutieve combinatie"}]
[null,null,null,null,null,null,null,null,null,null,{"$f":"IF(NOT(OR(ISBLANK(Table1[[#This Row],[Betaal\njaar]]),ISBLANK(Table1[[#This Row],[Betaal\nmaand]]))),VLOOKUP(Table1[[#This Row],[Betaal\nmaand]],Jaren!E:I,5,FALSE)&D9,\"\")","v":""},null,null,"BVELKENE",{"$f":"IF(ISBLANK(Table1[[#This Row],[IBAN]]),\"\",ValidateIban(L9))","v":""},{"$f":"IF(NOT(ISERROR(IF(OR(LEFT(Table1[[#This Row],[Reden beurzen]],11)<>\"VLIR_ICP_1Y\",LEFT(Table1[[#This Row],[Reden beurzen]],11)<>\"VLIR_ICP_2Y\",LEFT(Table1[[#This Row],[Reden beurzen]],11)<>\"VLIR_ICP_3Y\"),VLOOKUP(Table1[[#This Row],[Reden beurzen]]&Table1[[#This Row],[Omschrijving]],Codes!C:C,1,FALSE)))),\"Bestaande combinatie\",\"Foutieve combinatie\")","v":"Foutieve combinatie"}]

{"sheet":"Codes","index":1,"n_rows":259,"n_cols":9,"rows_kept":259,"cut":false,"hidden":false,"merged":[]}
["Reden","Mapping","Check veld","Document\nsoort","Contr.rek.\ntype","Hoofd\nOperatie","Deel\nOperatie","Rekening","Rekening\nOmschrijving"]
["BIJZ_AKKOORD","SCHOLARSHIP",{"$f":"A2&B2","v":"BIJZ_AKKOORDSCHOLARSHIP"},"UI","UI","UI03",{"$f":"VLOOKUP(B2,Rekening!A:C,3,FALSE)","v":"0011"},{"$f":"VLOOKUP(G2,Rekening!C:F,3,FALSE)","v":613420},{"$f":"VLOOKUP(G2,Rekening!C:F,4,FALSE)","v":"Bursalen"}]
["BIJZ_AKKOORD","ACCOMODATION ALLOWANCE","BIJZ_AKKOORDACCOMODATION ALLOWANCE","UI","UI","UI03",{"$f":"VLOOKUP(B3,Rekening!A:C,3,FALSE)","v":"0021"},{"$f":"VLOOKUP(G3,Rekening!C:F,3,FALSE)","v":613330},{"$f":"VLOOKUP(G3,Rekening!C:F,4,FALSE)","v":"Reis- en verblijfkosten studenten"}]
["BIJZ_AKKOORD","TUITION FEE","BIJZ_AKKOORDTUITION FEE","UI","UI","UI03",{"$f":"VLOOKUP(B4,Rekening!A:C,3,FALSE)","v":"0071"},{"$f":"VLOOKUP(G4,Rekening!C:F,3,FALSE)","v":613420},{"$f":"VLOOKUP(G4,Rekening!C:F,4,FALSE)","v":"Bursalen"}]
["BIJZ_AKKOORD","FAMILY SUPPLEMENT","BIJZ_AKKOORDFAMILY SUPPLEMENT","UI","UI","UI03",{"$f":"VLOOKUP(B5,Rekening!A:C,3,FALSE)","v":"0081"},{"$f":"VLOOKUP(G5,Rekening!C:F,3,FALSE)","v":613330},{"$f":"VLOOKUP(G5,Rekening!C:F,4,FALSE)","v":"Reis- en verblijfkosten studenten"}]
["BIJZ_AKKOORD","PROGRAM RELATED TRAVEL COSTS","BIJZ_AKKOORDPROGRAM RELATED TRAVEL COSTS","UI","UI","UI03",{"$f":"VLOOKUP(B6,Rekening!A:C,3,FALSE)","v":"0091"},{"$f":"VLOOKUP(G6,Rekening!C:F,3,FALSE)","v":613330},{"$f":"VLOOKUP(G6,Rekening!C:F,4,FALSE)","v":"Reis- en verblijfkosten studenten"}]
["BIJZ_AKKOORD","AIRLINE TICKET","BIJZ_AKKOORDAIRLINE TICKET","UI","UI","UI03",{"$f":"VLOOKUP(B7,Rekening!A:C,3,FALSE)","v":"0101"},{"$f":"VLOOKUP(G7,Rekening!C:F,3,FALSE)","v":613330},{"$f":"VLOOKUP(G7,Rekening!C:F,4,FALSE)","v":"Reis- en verblijfkosten studenten"}]
["BIJZ_AKKOORD","CONFERENCE PARTICIPATION","BIJZ_AKKOORDCONFERENCE PARTICIPATION","UI","UI","UI03",{"$f":"VLOOKUP(B8,Rekening!A:C,3,FALSE)","v":"0271"},{"$f":"VLOOKUP(G8,Rekening!C:F,3,FALSE)","v":613330},{"$f":"VLOOKUP(G8,Rekening!C:F,4,FALSE)","v":"Reis- en verblijfkosten studenten"}]
["BIJZ_AKKOORD","HOTEL","BIJZ_AKKOORDHOTEL","UI","UI","UI03",{"$f":"VLOOKUP(B9,Rekening!A:C,3,FALSE)","v":"0281"},{"$f":"VLOOKUP(G9,Rekening!C:F,3,FALSE)","v":613330},{"$f":"VLOOKUP(G9,Rekening!C:F,4,FALSE)","v":"Reis- en verblijfkosten studenten"}]
["BIJZ_AKKOORD","OTHER ","BIJZ_AKKOORDOTHER ","UI","UI","UI03",{"$f":"VLOOKUP(B10,Rekening!A:C,3,FALSE)","v":"0291"},{"$f":"VLOOKUP(G10,Rekening!C:F,3,FALSE)","v":613330},{"$f":"VLOOKUP(G10,Rekening!C:F,4,FALSE)","v":"Reis- en verblijfkosten studenten"}]
["BOF_COFINANCIERING_CSC","BOF ACCOMMODATION ","BOF_COFINANCIERING_CSCBOF ACCOMMODATION ","UI","UI","UI03",{"$f":"VLOOKUP(B11,Rekening!A:C,3,FALSE)","v":"0301"},{"$f":"VLOOKUP(G11,Rekening!C:F,3,FALSE)","v":613330},{"$f":"VLOOKUP(G11,Rekening!C:F,4,FALSE)","v":"Reis- en verblijfkosten studenten"}]
["BOF_COFINANCIERING_CSC","BOF REIMBURSEMENT INSURANCE","BOF_COFINANCIERING_CSCBOF REIMBURSEMENT INSURANCE","UI","UI","UI03",{"$f":"VLOOKUP(B12,Rekening!A:C,3,FALSE)","v":"0311"},{"$f":"VLOOKUP(G12,Rekening!C:F,3,FALSE)","v":613330},{"$f":"VLOOKUP(G12,Rekening!C:F,4,FALSE)","v":"Reis- en verblijfkosten studenten"}]
["BOF_COFINANCIERING_CSC","BOF TOP UP ","BOF_COFINANCIERING_CSCBOF TOP UP ","UI","UI","UI03",{"$f":"VLOOKUP(B13,Rekening!A:C,3,FALSE)","v":"0321"},{"$f":"VLOOKUP(G13,Rekening!C:F,3,FALSE)","v":613330},{"$f":"VLOOKUP(G13,Rekening!C:F,4,FALSE)","v":"Reis- en verblijfkosten studenten"}]
["BOF_GEZAMENLIJK_DOCTORAAT_FJD","BOF ACCOMMODATION ","BOF_GEZAMENLIJK_DOCTORAAT_FJDBOF ACCOMMODATION ","UI","UI","UI03",{"$f":"VLOOKUP(B14,Rekening!A:C,3,FALSE)","v":"0301"},{"$f":"VLOOKUP(G14,Rekening!C:F,3,FALSE)","v":613330},{"$f":"VLOOKUP(G14,Rekening!C:F,4,FALSE)","v":"Reis- en verblijfkosten studenten"}]
["BOF_GEZAMENLIJK_DOCTORAAT_FJD","BOF REIMBURSEMENT INSURANCE","BOF_GEZAMENLIJK_DOCTORAAT_FJDBOF REIMBURSEMENT INSURANCE","UI","UI","UI03",{"$f":"VLOOKUP(B15,Rekening!A:C,3,FALSE)","v":"0311"},{"$f":"VLOOKUP(G15,Rekening!C:F,3,FALSE)","v":613330},{"$f":"VLOOKUP(G15,Rekening!C:F,4,FALSE)","v":"Reis- en verblijfkosten studenten"}]
["BOF_GEZAMENLIJK_DOCTORAAT_FJD","BOF TOP UP ","BOF_GEZAMENLIJK_DOCTORAAT_FJDBOF TOP UP ","UI","UI","UI03",{"$f":"VLOOKUP(B16,Rekening!A:C,3,FALSE)","v":"0321"},{"$f":"VLOOKUP(G16,Rekening!C:F,3,FALSE)","v":613330},{"$f":"VLOOKUP(G16,Rekening!C:F,4,FALSE)","v":"Reis- en verblijfkosten studenten"}]
["DI-INTERS","SCHOLARSHIP","DI-INTERSSCHOLARSHIP","UI","UI","UI03","0011",{"$f":"VLOOKUP(G17,Rekening!C:F,3,FALSE)","v":613420},{"$f":"VLOOKUP(G17,Rekening!C:F,4,FALSE)","v":"Bursalen"}]
["DI-RESIDENTS","SCHOLARSHIP","DI-RESIDENTSSCHOLARSHIP","UI","UI","UI03","0011",{"$f":"VLOOKUP(G18,Rekening!C:F,3,FALSE)","v":613420},{"$f":"VLOOKUP(G18,Rekening!C:F,4,FALSE)","v":"Bursalen"}]
["EKAFREE_1Y","INSTALLATION ALLOWANCE","EKAFREE_1YINSTALLATION ALLOWANCE","UI","UI","UI03","0041",{"$f":"VLOOKUP(G19,Rekening!C:F,3,FALSE)","v":613330},{"$f":"VLOOKUP(G19,Rekening!C:F,4,FALSE)","v":"Reis- en verblijfkosten studenten"}]
["EKAFREE_1Y","SCHOLARSHIP","EKAFREE_1YSCHOLARSHIP","UI","UI","UI03","0011",{"$f":"VLOOKUP(G20,Rekening!C:F,3,FALSE)","v":613420},{"$f":"VLOOKUP(G20,Rekening!C:F,4,FALSE)","v":"Bursalen"}]
["EKAFREE_1Y","TRAVEL GRANT","EKAFREE_1YTRAVEL GRANT","UI","UI","UI03","0171",{"$f":"VLOOKUP(G21,Rekening!C:F,3,FALSE)","v":613330},{"$f":"VLOOKUP(G21,Rekening!C:F,4,FALSE)","v":"Reis- en verblijfkosten studenten"}]
["EKAFREE_2Y","INSTALLATION ALLOWANCE","EKAFREE_2YINSTALLATION ALLOWANCE","UI","UI","UI03","0041",{"$f":"VLOOKUP(G22,Rekening!C:F,3,FALSE)","v":613330},{"$f":"VLOOKUP(G22,Rekening!C:F,4,FALSE)","v":"Reis- en verblijfkosten studenten"}]
["EKAFREE_2Y","SCHOLARSHIP","EKAFREE_2YSCHOLARSHIP","UI","UI","UI03","0011",{"$f":"VLOOKUP(G23,Rekening!C:F,3,FALSE)","v":613420},{"$f":"VLOOKUP(G23,Rekening!C:F,4,FALSE)","v":"Bursalen"}]
["EKAFREE_2Y","TRAVEL GRANT","EKAFREE_2YTRAVEL GRANT","UI","UI","UI03","0171",{"$f":"VLOOKUP(G24,Rekening!C:F,3,FALSE)","v":613330},{"$f":"VLOOKUP(G24,Rekening!C:F,4,FALSE)","v":"Reis- en verblijfkosten studenten"}]
["EKAFREE1_1Y","SCHOLARSHIP","EKAFREE1_1YSCHOLARSHIP","UI","UI","UI03","0011",{"$f":"VLOOKUP(G25,Rekening!C:F,3,FALSE)","v":613420},{"$f":"VLOOKUP(G25,Rekening!C:F,4,FALSE)","v":"Bursalen"}]
["EKAFREE1_2Y","SCHOLARSHIP","EKAFREE1_2YSCHOLARSHIP","UI","UI","UI03","0011",{"$f":"VLOOKUP(G26,Rekening!C:F,3,FALSE)","v":613420},{"$f":"VLOOKUP(G26,Rekening!C:F,4,FALSE)","v":"Bursalen"}]
["EMA_2","SCHOLARSHIP","EMA_2SCHOLARSHIP","UI","UI","UI03","0011",{"$f":"VLOOKUP(G27,Rekening!C:F,3,FALSE)","v":613420},{"$f":"VLOOKUP(G27,Rekening!C:F,4,FALSE)","v":"Bursalen"}]
["EMBELG","ACCOMODATION ALLOWANCE","EMBELGACCOMODATION ALLOWANCE","UI","UI","UI03","0021",{"$f":"VLOOKUP(G28,Rekening!C:F,3,FALSE)","v":613330},{"$f":"VLOOKUP(G28,Rekening!C:F,4,FALSE)","v":"Reis- en verblijfkosten studenten"}]
["EMBELG","INSTALLATION ALLOWANCE","EMBELGINSTALLATION ALLOWANCE","UI","UI","UI03","0041",{"$f":"VLOOKUP(G29,Rekening!C:F,3,FALSE)","v":613330},{"$f":"VLOOKUP(G29,Rekening!C:F,4,FALSE)","v":"Reis- en verblijfkosten studenten"}]
["EMBELG","SCHOLARSHIP","EMBELGSCHOLARSHIP","UI","UI","UI03","0011",{"$f":"VLOOKUP(G30,Rekening!C:F,3,FALSE)","v":613420},{"$f":"VLOOKUP(G30,Rekening!C:F,4,FALSE)","v":"Bursalen"}]
["EMBELG","TRAVEL GRANT","EMBELGTRAVEL GRANT","UI","UI","UI03","0171",{"$f":"VLOOKUP(G31,Rekening!C:F,3,FALSE)","v":613330},{"$f":"VLOOKUP(G31,Rekening!C:F,4,FALSE)","v":"Reis- en verblijfkosten studenten"}]
["EMBILAKKOORD","ACCOMODATION ALLOWANCE","EMBILAKKOORDACCOMODATION ALLOWANCE","UI","UI","UI03","0021",{"$f":"VLOOKUP(G32,Rekening!C:F,3,FALSE)","v":613330},{"$f":"VLOOKUP(G32,Rekening!C:F,4,FALSE)","v":"Reis- en verblijfkosten studenten"}]
["EMBILAKKOORD","INSTALLATION ALLOWANCE","EMBILAKKOORDINSTALLATION ALLOWANCE","UI","UI","UI03","0041",{"$f":"VLOOKUP(G33,Rekening!C:F,3,FALSE)","v":613330},{"$f":"VLOOKUP(G33,Rekening!C:F,4,FALSE)","v":"Reis- en verblijfkosten studenten"}]
["EMBILAKKOORD","SCHOLARSHIP","EMBILAKKOORDSCHOLARSHIP","UI","UI","UI03","0011",{"$f":"VLOOKUP(G34,Rekening!C:F,3,FALSE)","v":613420},{"$f":"VLOOKUP(G34,Rekening!C:F,4,FALSE)","v":"Bursalen"}]
["EMBILAKKOORD","TRAVEL GRANT","EMBILAKKOORDTRAVEL GRANT","UI","UI","UI03","0171",{"$f":"VLOOKUP(G35,Rekening!C:F,3,FALSE)","v":613330},{"$f":"VLOOKUP(G35,Rekening!C:F,4,FALSE)","v":"Reis- en verblijfkosten studenten"}]
["EMCMOUTEU","ACCOMODATION ALLOWANCE","EMCMOUTEUACCOMODATION ALLOWANCE","UI","UI","UI03","0021",{"$f":"VLOOKUP(G36,Rekening!C:F,3,FALSE)","v":613330},{"$f":"VLOOKUP(G36,Rekening!C:F,4,FALSE)","v":"Reis- en verblijfkosten studenten"}]
["EMCMOUTEU","INSTALLATION ALLOWANCE","EMCMOUTEUINSTALLATION ALLOWANCE","UI","UI","UI03","0041",{"$f":"VLOOKUP(G37,Rekening!C:F,3,FALSE)","v":613330},{"$f":"VLOOKUP(G37,Rekening!C:F,4,FALSE)","v":"Reis- en verblijfkosten studenten"}]
["EMCMOUTEU","SCHOLARSHIP","EMCMOUTEUSCHOLARSHIP","UI","UI","UI03","0011",{"$f":"VLOOKUP(G38,Rekening!C:F,3,FALSE)","v":613420},{"$f":"VLOOKUP(G38,Rekening!C:F,4,FALSE)","v":"Bursalen"}]
["EMCMOUTEU","TRAVEL GRANT","EMCMOUTEUTRAVEL GRANT","UI","UI","UI03","0171",{"$f":"VLOOKUP(G39,Rekening!C:F,3,FALSE)","v":613330},{"$f":"VLOOKUP(G39,Rekening!C:F,4,FALSE)","v":"Reis- en verblijfkosten studenten"}]
["EMGENBEURS","ACCOMODATION ALLOWANCE","EMGENBEURSACCOMODATION ALLOWANCE","UI","UI","UI03","0021",{"$f":"VLOOKUP(G40,Rekening!C:F,3,FALSE)","v":613330},{"$f":"VLOOKUP(G40,Rekening!C:F,4,FALSE)","v":"Reis- en verblijfkosten studenten"}]
["EMGENBEURS","INSTALLATION ALLOWANCE","EMGENBEURSINSTALLATION ALLOWANCE","UI","UI","UI03","0041",{"$f":"VLOOKUP(G41,Rekening!C:F,3,FALSE)","v":613330},{"$f":"VLOOKUP(G41,Rekening!C:F,4,FALSE)","v":"Reis- en verblijfkosten studenten"}]
["EMGENBEURS","SCHOLARSHIP","EMGENBEURSSCHOLARSHIP","UI","UI","UI03","0011",{"$f":"VLOOKUP(G42,Rekening!C:F,3,FALSE)","v":613420},{"$f":"VLOOKUP(G42,Rekening!C:F,4,FALSE)","v":"Bursalen"}]
["EMGENBEURS","TRAVEL GRANT","EMGENBEURSTRAVEL GRANT","UI","UI","UI03","0171",{"$f":"VLOOKUP(G43,Rekening!C:F,3,FALSE)","v":613330},{"$f":"VLOOKUP(G43,Rekening!C:F,4,FALSE)","v":"Reis- en verblijfkosten studenten"}]
["EMJM1","ACCOMODATION ALLOWANCE","EMJM1ACCOMODATION ALLOWANCE","UI","UI","UI03","0021",{"$f":"VLOOKUP(G44,Rekening!C:F,3,FALSE)","v":613330},{"$f":"VLOOKUP(G44,Rekening!C:F,4,FALSE)","v":"Reis- en verblijfkosten studenten"}]
["EMJM1","INSTALLATION ALLOWANCE","EMJM1INSTALLATION ALLOWANCE","UI","UI","UI03","0041",{"$f":"VLOOKUP(G45,Rekening!C:F,3,FALSE)","v":613330},{"$f":"VLOOKUP(G45,Rekening!C:F,4,FALSE)","v":"Reis- en verblijfkosten studenten"}]
["EMJM1","SCHOLARSHIP","EMJM1SCHOLARSHIP","UI","UI","UI03","0011",{"$f":"VLOOKUP(G46,Rekening!C:F,3,FALSE)","v":613420},{"$f":"VLOOKUP(G46,Rekening!C:F,4,FALSE)","v":"Bursalen"}]
["EMJM1","TRAVEL GRANT","EMJM1TRAVEL GRANT","UI","UI","UI03","0171",{"$f":"VLOOKUP(G47,Rekening!C:F,3,FALSE)","v":613330},{"$f":"VLOOKUP(G47,Rekening!C:F,4,FALSE)","v":"Reis- en verblijfkosten studenten"}]
["EMSTUD","ACCOMODATION ALLOWANCE","EMSTUDACCOMODATION ALLOWANCE","UI","UI","UI03","0021",{"$f":"VLOOKUP(G48,Rekening!C:F,3,FALSE)","v":613330},{"$f":"VLOOKUP(G48,Rekening!C:F,4,FALSE)","v":"Reis- en verblijfkosten studenten"}]
["EMSTUD","INSTALLATION ALLOWANCE","EMSTUDINSTALLATION ALLOWANCE","UI","UI","UI03","0041",{"$f":"VLOOKUP(G49,Rekening!C:F,3,FALSE)","v":613330},{"$f":"VLOOKUP(G49,Rekening!C:F,4,FALSE)","v":"Reis- en verblijfkosten studenten"}]
["EMSTUD","SCHOLARSHIP","EMSTUDSCHOLARSHIP","UI","UI","UI03","0011",{"$f":"VLOOKUP(G50,Rekening!C:F,3,FALSE)","v":613420},{"$f":"VLOOKUP(G50,Rekening!C:F,4,FALSE)","v":"Bursalen"}]
["EMSTUD","TRAVEL GRANT","EMSTUDTRAVEL GRANT","UI","UI","UI03","0171",{"$f":"VLOOKUP(G51,Rekening!C:F,3,FALSE)","v":613330},{"$f":"VLOOKUP(G51,Rekening!C:F,4,FALSE)","v":"Reis- en verblijfkosten studenten"}]
["EMTRAIN","ACCOMODATION ALLOWANCE","EMTRAINACCOMODATION ALLOWANCE","UI","UI","UI03","0021",{"$f":"VLOOKUP(G52,Rekening!C:F,3,FALSE)","v":613330},{"$f":"VLOOKUP(G52,Rekening!C:F,4,FALSE)","v":"Reis- en verblijfkosten studenten"}]
["EMTRAIN","INSTALLATION ALLOWANCE","EMTRAININSTALLATION ALLOWANCE","UI","UI","UI03","0041",{"$f":"VLOOKUP(G53,Rekening!C:F,3,FALSE)","v":613330},{"$f":"VLOOKUP(G53,Rekening!C:F,4,FALSE)","v":"Reis- en verblijfkosten studenten"}]
["EMTRAIN","SCHOLARSHIP","EMTRAINSCHOLARSHIP","UI","UI","UI03","0011",{"$f":"VLOOKUP(G54,Rekening!C:F,3,FALSE)","v":613420},{"$f":"VLOOKUP(G54,Rekening!C:F,4,FALSE)","v":"Bursalen"}]
["EMTRAIN","TRAVEL GRANT","EMTRAINTRAVEL GRANT","UI","UI","UI03","0171",{"$f":"VLOOKUP(G55,Rekening!C:F,3,FALSE)","v":613330},{"$f":"VLOOKUP(G55,Rekening!C:F,4,FALSE)","v":"Reis- en verblijfkosten studenten"}]
["EXPERIMENTEN","DIV_EXPERIMENTEN","EXPERIMENTENDIV_EXPERIMENTEN","UI","UI","UI04","0001",{"$f":"VLOOKUP(G56,Rekening!C:F,3,FALSE)","v":613601},{"$f":"VLOOKUP(G56,Rekening!C:F,4,FALSE)","v":"Vergoedingen aan particulieren"}]
["FUSION_EP","INSTALLATION FEE Y1","FUSION_EPINSTALLATION FEE Y1","UI","UI","UI03","0201",{"$f":"VLOOKUP(G57,Rekening!C:F,3,FALSE)","v":613330},{"$f":"VLOOKUP(G57,Rekening!C:F,4,FALSE)","v":"Reis- en verblijfkosten studenten"}]
["FUSION_EP","INSTALLATION FEE Y2","FUSION_EPINSTALLATION FEE Y2","UI","UI","UI03","0211",{"$f":"VLOOKUP(G58,Rekening!C:F,3,FALSE)","v":613330},{"$f":"VLOOKUP(G58,Rekening!C:F,4,FALSE)","v":"Reis- en verblijfkosten studenten"}]
["FUSION_EP","SCHOLARSHIP Y1","FUSION_EPSCHOLARSHIP Y1","UI","UI","UI03","0181",{"$f":"VLOOKUP(G59,Rekening!C:F,3,FALSE)","v":613420},{"$f":"VLOOKUP(G59,Rekening!C:F,4,FALSE)","v":"Bursalen"}]
["FUSION_EP","SCHOLARSHIP Y2","FUSION_EPSCHOLARSHIP Y2","UI","UI","UI03","0191",{"$f":"VLOOKUP(G60,Rekening!C:F,3,FALSE)","v":613420},{"$f":"VLOOKUP(G60,Rekening!C:F,4,FALSE)","v":"Bursalen"}]
["IMBRSEA_1Y","INSTALLATION ALLOWANCE","IMBRSEA_1YINSTALLATION ALLOWANCE","UI","UI","UI03","0041",{"$f":"VLOOKUP(G61,Rekening!C:F,3,FALSE)","v":613330},{"$f":"VLOOKUP(G61,Rekening!C:F,4,FALSE)","v":"Reis- en verblijfkosten studenten"}]
["IMBRSEA_1Y","SCHOLARSHIP","IMBRSEA_1YSCHOLARSHIP","UI","UI","UI03","0011",{"$f":"VLOOKUP(G62,Rekening!C:F,3,FALSE)","v":613420},{"$f":"VLOOKUP(G62,Rekening!C:F,4,FALSE)","v":"Bursalen"}]
["IMBRSEA_1Y","TRAVEL GRANT","IMBRSEA_1YTRAVEL GRANT","UI","UI","UI03","0171",{"$f":"VLOOKUP(G63,Rekening!C:F,3,FALSE)","v":613330},{"$f":"VLOOKUP(G63,Rekening!C:F,4,FALSE)","v":"Reis- en verblijfkosten studenten"}]
["IMBRSEA_2Y","INSTALLATION ALLOWANCE","IMBRSEA_2YINSTALLATION ALLOWANCE","UI","UI","UI03","0041",{"$f":"VLOOKUP(G64,Rekening!C:F,3,FALSE)","v":613330},{"$f":"VLOOKUP(G64,Rekening!C:F,4,FALSE)","v":"Reis- en verblijfkosten studenten"}]
["IMBRSEA_2Y","SCHOLARSHIP","IMBRSEA_2YSCHOLARSHIP","UI","UI","UI03","0011",{"$f":"VLOOKUP(G65,Rekening!C:F,3,FALSE)","v":613420},{"$f":"VLOOKUP(G65,Rekening!C:F,4,FALSE)","v":"Bursalen"}]
["IMBRSEA_2Y","TRAVEL GRANT",{"$f":"A66&B66","v":"IMBRSEA_2YTRAVEL GRANT"},"UI","UI","UI03","0171",{"$f":"VLOOKUP(G66,Rekening!C:F,3,FALSE)","v":613330},{"$f":"VLOOKUP(G66,Rekening!C:F,4,FALSE)","v":"Reis- en verblijfkosten studenten"}]
["IMBRSEA_SCH","SCHOLARSHIP","IMBRSEA_SCHSCHOLARSHIP","UI","UI","UI03","0011",{"$f":"VLOOKUP(G67,Rekening!C:F,3,FALSE)","v":613420},{"$f":"VLOOKUP(G67,Rekening!C:F,4,FALSE)","v":"Bursalen"}]
["IMETE_1Y","INSTALLATION ALLOWANCE","IMETE_1YINSTALLATION ALLOWANCE","UI","UI","UI03","0041",{"$f":"VLOOKUP(G68,Rekening!C:F,3,FALSE)","v":613330},{"$f":"VLOOKUP(G68,Rekening!C:F,4,FALSE)","v":"Reis- en verblijfkosten studenten"}]
["IMETE_1Y","SCHOLARSHIP","IMETE_1YSCHOLARSHIP","UI","UI","UI03","0011",{"$f":"VLOOKUP(G69,Rekening!C:F,3,FALSE)","v":613420},{"$f":"VLOOKUP(G69,Rekening!C:F,4,FALSE)","v":"Bursalen"}]
["IMETE_1Y","TRAVEL GRANT","IMETE_1YTRAVEL GRANT","UI","UI","UI03","0171",{"$f":"VLOOKUP(G70,Rekening!C:F,3,FALSE)","v":613330},{"$f":"VLOOKUP(G70,Rekening!C:F,4,FALSE)","v":"Reis- en verblijfkosten studenten"}]
["IMETE_2Y","INSTALLATION ALLOWANCE","IMETE_2YINSTALLATION ALLOWANCE","UI","UI","UI03","0041",{"$f":"VLOOKUP(G71,Rekening!C:F,3,FALSE)","v":613330},{"$f":"VLOOKUP(G71,Rekening!C:F,4,FALSE)","v":"Reis- en verblijfkosten studenten"}]
["IMETE_2Y","SCHOLARSHIP","IMETE_2YSCHOLARSHIP","UI","UI","UI03","0011",{"$f":"VLOOKUP(G72,Rekening!C:F,3,FALSE)","v":613420},{"$f":"VLOOKUP(G72,Rekening!C:F,4,FALSE)","v":"Bursalen"}]
["IMETE_2Y","TRAVEL GRANT","IMETE_2YTRAVEL GRANT","UI","UI","UI03","0171",{"$f":"VLOOKUP(G73,Rekening!C:F,3,FALSE)","v":613330},{"$f":"VLOOKUP(G73,Rekening!C:F,4,FALSE)","v":"Reis- en verblijfkosten studenten"}]
["IMFSE_Y1","INSTALLATION ALLOWANCE","IMFSE_Y1INSTALLATION ALLOWANCE","UI","UI","UI03","0041",{"$f":"VLOOKUP(G74,Rekening!C:F,3,FALSE)","v":613330},{"$f":"VLOOKUP(G74,Rekening!C:F,4,FALSE)","v":"Reis- en verblijfkosten studenten"}]
["IMFSE_Y1","SCHOLARSHIP","IMFSE_Y1SCHOLARSHIP","UI","UI","UI03","0011",{"$f":"VLOOKUP(G75,Rekening!C:F,3,FALSE)","v":613420},{"$f":"VLOOKUP(G75,Rekening!C:F,4,FALSE)","v":"Bursalen"}]
["IMFSE_Y1","TRAVEL GRANT","IMFSE_Y1TRAVEL GRANT","UI","UI","UI03","0171",{"$f":"VLOOKUP(G76,Rekening!C:F,3,FALSE)","v":613330},{"$f":"VLOOKUP(G76,Rekening!C:F,4,FALSE)","v":"Reis- en verblijfkosten studenten"}]
["IMFSE_Y2","INSTALLATION ALLOWANCE","IMFSE_Y2INSTALLATION ALLOWANCE","UI","UI","UI03","0041",{"$f":"VLOOKUP(G77,Rekening!C:F,3,FALSE)","v":613330},{"$f":"VLOOKUP(G77,Rekening!C:F,4,FALSE)","v":"Reis- en verblijfkosten studenten"}]
["IMFSE_Y2","SCHOLARSHIP","IMFSE_Y2SCHOLARSHIP","UI","UI","UI03","0011",{"$f":"VLOOKUP(G78,Rekening!C:F,3,FALSE)","v":613420},{"$f":"VLOOKUP(G78,Rekening!C:F,4,FALSE)","v":"Bursalen"}]
["IMFSE_Y2","TRAVEL GRANT","IMFSE_Y2TRAVEL GRANT","UI","UI","UI03","0171",{"$f":"VLOOKUP(G79,Rekening!C:F,3,FALSE)","v":613330},{"$f":"VLOOKUP(G79,Rekening!C:F,4,FALSE)","v":"Reis- en verblijfkosten studenten"}]
["IMRD_1Y","INSTALLATION ALLOWANCE","IMRD_1YINSTALLATION ALLOWANCE","UI","UI","UI03","0041",{"$f":"VLOOKUP(G80,Rekening!C:F,3,FALSE)","v":613330},{"$f":"VLOOKUP(G80,Rekening!C:F,4,FALSE)","v":"Reis- en verblijfkosten studenten"}]
["IMRD_1Y","SCHOLARSHIP","IMRD_1YSCHOLARSHIP","UI","UI","UI03","0011",{"$f":"VLOOKUP(G81,Rekening!C:F,3,FALSE)","v":613420},{"$f":"VLOOKUP(G81,Rekening!C:F,4,FALSE)","v":"Bursalen"}]
["IMRD_1Y","TRAVEL GRANT","IMRD_1YTRAVEL GRANT","UI","UI","UI03","0171",{"$f":"VLOOKUP(G82,Rekening!C:F,3,FALSE)","v":613330},{"$f":"VLOOKUP(G82,Rekening!C:F,4,FALSE)","v":"Reis- en verblijfkosten studenten"}]
["IMRD_2Y","INSTALLATION ALLOWANCE","IMRD_2YINSTALLATION ALLOWANCE","UI","UI","UI03","0041",{"$f":"VLOOKUP(G83,Rekening!C:F,3,FALSE)","v":613330},{"$f":"VLOOKUP(G83,Rekening!C:F,4,FALSE)","v":"Reis- en verblijfkosten studenten"}]
["IMRD_2Y","SCHOLARSHIP","IMRD_2YSCHOLARSHIP","UI","UI","UI03","0011",{"$f":"VLOOKUP(G84,Rekening!C:F,3,FALSE)","v":613420},{"$f":"VLOOKUP(G84,Rekening!C:F,4,FALSE)","v":"Bursalen"}]
["IMRD_2Y","TRAVEL GRANT","IMRD_2YTRAVEL GRANT","UI","UI","UI03","0171",{"$f":"VLOOKUP(G85,Rekening!C:F,3,FALSE)","v":613330},{"$f":"VLOOKUP(G85,Rekening!C:F,4,FALSE)","v":"Reis- en verblijfkosten studenten"}]
["MARIE_CURIE","FAMILY ALLOWANCE","MARIE_CURIEFAMILY ALLOWANCE","UI","UI","UI03","0081",{"$f":"VLOOKUP(G86,Rekening!C:F,3,FALSE)","v":613330},{"$f":"VLOOKUP(G86,Rekening!C:F,4,FALSE)","v":"Reis- en verblijfkosten studenten"}]
["MARIE_CURIE","MATCHING MOBILITY ALLOWANCE","MARIE_CURIEMATCHING MOBILITY ALLOWANCE","UI","UI","UI03","0231",{"$f":"VLOOKUP(G87,Rekening!C:F,3,FALSE)","v":613330},{"$f":"VLOOKUP(G87,Rekening!C:F,4,FALSE)","v":"Reis- en verblijfkosten studenten"}]
["MARIE_CURIE","MOBILITY ALLOWANCE","MARIE_CURIEMOBILITY ALLOWANCE","UI","UI","UI03","0221",{"$f":"VLOOKUP(G88,Rekening!C:F,3,FALSE)","v":613330},{"$f":"VLOOKUP(G88,Rekening!C:F,4,FALSE)","v":"Reis- en verblijfkosten studenten"}]
["SINREM_1Y","INSTALLATION ALLOWANCE","SINREM_1YINSTALLATION ALLOWANCE","UI","UI","UI03","0041",{"$f":"VLOOKUP(G89,Rekening!C:F,3,FALSE)","v":613330},{"$f":"VLOOKUP(G89,Rekening!C:F,4,FALSE)","v":"Reis- en verblijfkosten studenten"}]
["SINREM_1Y","SCHOLARSHIP","SINREM_1YSCHOLARSHIP","UI","UI","UI03","0011",{"$f":"VLOOKUP(G90,Rekening!C:F,3,FALSE)","v":613420},{"$f":"VLOOKUP(G90,Rekening!C:F,4,FALSE)","v":"Bursalen"}]
["SINREM_1Y","TRAVEL GRANT","SINREM_1YTRAVEL GRANT","UI","UI","UI03","0171",{"$f":"VLOOKUP(G91,Rekening!C:F,3,FALSE)","v":613330},{"$f":"VLOOKUP(G91,Rekening!C:F,4,FALSE)","v":"Reis- en verblijfkosten studenten"}]
["SINREM_2Y","INSTALLATION ALLOWANCE","SINREM_2YINSTALLATION ALLOWANCE","UI","UI","UI03","0041",{"$f":"VLOOKUP(G92,Rekening!C:F,3,FALSE)","v":613330},{"$f":"VLOOKUP(G92,Rekening!C:F,4,FALSE)","v":"Reis- en verblijfkosten studenten"}]
["SINREM_2Y","SCHOLARSHIP","SINREM_2YSCHOLARSHIP","UI","UI","UI03","0011",{"$f":"VLOOKUP(G93,Rekening!C:F,3,FALSE)","v":613420},{"$f":"VLOOKUP(G93,Rekening!C:F,4,FALSE)","v":"Bursalen"}]
["SINREM_2Y","TRAVEL GRANT","SINREM_2YTRAVEL GRANT","UI","UI","UI03","0171",{"$f":"VLOOKUP(G94,Rekening!C:F,3,FALSE)","v":613330},{"$f":"VLOOKUP(G94,Rekening!C:F,4,FALSE)","v":"Reis- en verblijfkosten studenten"}]
["TUG_1Y","OTHER","TUG_1YOTHER","UI","UI","UI02","0121",{"$f":"VLOOKUP(G95,Rekening!C:F,3,FALSE)","v":613330},{"$f":"VLOOKUP(G95,Rekening!C:F,4,FALSE)","v":"Reis- en verblijfkosten studenten"}]
["TUG_1Y","SCHOLARSHIP","TUG_1YSCHOLARSHIP","UI","UI","UI02","0011",{"$f":"VLOOKUP(G96,Rekening!C:F,3,FALSE)","v":613420},{"$f":"VLOOKUP(G96,Rekening!C:F,4,FALSE)","v":"Bursalen"}]
["TUG_1Y","TRAVEL GRANT 1/4","TUG_1YTRAVEL GRANT 1/4","UI","UI","UI02","0131",{"$f":"VLOOKUP(G97,Rekening!C:F,3,FALSE)","v":613330},{"$f":"VLOOKUP(G97,Rekening!C:F,4,FALSE)","v":"Reis- en verblijfkosten studenten"}]
["TUG_1Y","TRAVEL GRANT 2/4","TUG_1YTRAVEL GRANT 2/4","UI","UI","UI02","0141",{"$f":"VLOOKUP(G98,Rekening!C:F,3,FALSE)","v":613330},{"$f":"VLOOKUP(G98,Rekening!C:F,4,FALSE)","v":"Reis- en verblijfkosten studenten"}]
["TUG_1Y","TRAVEL GRANT 3/4","TUG_1YTRAVEL GRANT 3/4","UI","UI","UI02","0151",{"$f":"VLOOKUP(G99,Rekening!C:F,3,FALSE)","v":613330},{"$f":"VLOOKUP(G99,Rekening!C:F,4,FALSE)","v":"Reis- en verblijfkosten studenten"}]
["TUG_1Y","TRAVEL GRANT 4/4","TUG_1YTRAVEL GRANT 4/4","UI","UI","UI02","0161",{"$f":"VLOOKUP(G100,Rekening!C:F,3,FALSE)","v":613330},{"$f":"VLOOKUP(G100,Rekening!C:F,4,FALSE)","v":"Reis- en verblijfkosten studenten"}]
["TUG_2Y","OTHER","TUG_2YOTHER","UI","UI","UI02","0121",{"$f":"VLOOKUP(G101,Rekening!C:F,3,FALSE)","v":613330},{"$f":"VLOOKUP(G101,Rekening!C:F,4,FALSE)","v":"Reis- en verblijfkosten studenten"}]
["TUG_2Y","SCHOLARSHIP","TUG_2YSCHOLARSHIP","UI","UI","UI02","0011",{"$f":"VLOOKUP(G102,Rekening!C:F,3,FALSE)","v":613420},{"$f":"VLOOKUP(G102,Rekening!C:F,4,FALSE)","v":"Bursalen"}]
["TUG_2Y","TRAVEL GRANT 1/4","TUG_2YTRAVEL GRANT 1/4","UI","UI","UI02","0131",{"$f":"VLOOKUP(G103,Rekening!C:F,3,FALSE)","v":613330},{"$f":"VLOOKUP(G103,Rekening!C:F,4,FALSE)","v":"Reis- en verblijfkosten studenten"}]
["TUG_2Y","TRAVEL GRANT 2/4","TUG_2YTRAVEL GRANT 2/4","UI","UI","UI02","0141",{"$f":"VLOOKUP(G104,Rekening!C:F,3,FALSE)","v":613330},{"$f":"VLOOKUP(G104,Rekening!C:F,4,FALSE)","v":"Reis- en verblijfkosten studenten"}]
["TUG_2Y","TRAVEL GRANT 3/4","TUG_2YTRAVEL GRANT 3/4","UI","UI","UI02","0151",{"$f":"VLOOKUP(G105,Rekening!C:F,3,FALSE)","v":613330},{"$f":"VLOOKUP(G105,Rekening!C:F,4,FALSE)","v":"Reis- en verblijfkosten studenten"}]
["TUG_2Y","TRAVEL GRANT 4/4","TUG_2YTRAVEL GRANT 4/4","UI","UI","UI02","0161",{"$f":"VLOOKUP(G106,Rekening!C:F,3,FALSE)","v":613330},{"$f":"VLOOKUP(G106,Rekening!C:F,4,FALSE)","v":"Reis- en verblijfkosten studenten"}]
["TUG_GEOORMERKTE_1Y","OTHER","TUG_GEOORMERKTE_1YOTHER","UI","UI","UI02","0121",{"$f":"VLOOKUP(G107,Rekening!C:F,3,FALSE)","v":613330},{"$f":"VLOOKUP(G107,Rekening!C:F,4,FALSE)","v":"Reis- en verblijfkosten studenten"}]
["TUG_GEOORMERKTE_1Y","SCHOLARSHIP","TUG_GEOORMERKTE_1YSCHOLARSHIP","UI","UI","UI02","0011",{"$f":"VLOOKUP(G108,Rekening!C:F,3,FALSE)","v":613420},{"$f":"VLOOKUP(G108,Rekening!C:F,4,FALSE)","v":"Bursalen"}]
["TUG_GEOORMERKTE_1Y","TRAVEL GRANT 1/4","TUG_GEOORMERKTE_1YTRAVEL GRANT 1/4","UI","UI","UI02","0131",{"$f":"VLOOKUP(G109,Rekening!C:F,3,FALSE)","v":613330},{"$f":"VLOOKUP(G109,Rekening!C:F,4,FALSE)","v":"Reis- en verblijfkosten studenten"}]
["TUG_GEOORMERKTE_1Y","TRAVEL GRANT 2/4","TUG_GEOORMERKTE_1YTRAVEL GRANT 2/4","UI","UI","UI02","0141",{"$f":"VLOOKUP(G110,Rekening!C:F,3,FALSE)","v":613330},{"$f":"VLOOKUP(G110,Rekening!C:F,4,FALSE)","v":"Reis- en verblijfkosten studenten"}]
["TUG_GEOORMERKTE_1Y","TRAVEL GRANT 3/4","TUG_GEOORMERKTE_1YTRAVEL GRANT 3/4","UI","UI","UI02","0151",{"$f":"VLOOKUP(G111,Rekening!C:F,3,FALSE)","v":613330},{"$f":"VLOOKUP(G111,Rekening!C:F,4,FALSE)","v":"Reis- en verblijfkosten studenten"}]
["TUG_GEOORMERKTE_1Y","TRAVEL GRANT 4/4","TUG_GEOORMERKTE_1YTRAVEL GRANT 4/4","UI","UI","UI02","0161",{"$f":"VLOOKUP(G112,Rekening!C:F,3,FALSE)","v":613330},{"$f":"VLOOKUP(G112,Rekening!C:F,4,FALSE)","v":"Reis- en verblijfkosten studenten"}]
["TUG_GEOORMERKTE_2Y","OTHER","TUG_GEOORMERKTE_2YOTHER","UI","UI","UI02","0121",{"$f":"VLOOKUP(G113,Rekening!C:F,3,FALSE)","v":613330},{"$f":"VLOOKUP(G113,Rekening!C:F,4,FALSE)","v":"Reis- en verblijfkosten studenten"}]
["TUG_GEOORMERKTE_2Y","SCHOLARSHIP","TUG_GEOORMERKTE_2YSCHOLARSHIP","UI","UI","UI02","0011",{"$f":"VLOOKUP(G114,Rekening!C:F,3,FALSE)","v":613420},{"$f":"VLOOKUP(G114,Rekening!C:F,4,FALSE)","v":"Bursalen"}]
["TUG_GEOORMERKTE_2Y","TRAVEL GRANT 1/4","TUG_GEOORMERKTE_2YTRAVEL GRANT 1/4","UI","UI","UI02","0131",{"$f":"VLOOKUP(G115,Rekening!C:F,3,FALSE)","v":613330},{"$f":"VLOOKUP(G115,Rekening!C:F,4,FALSE)","v":"Reis- en verblijfkosten studenten"}]
["TUG_GEOORMERKTE_2Y","TRAVEL GRANT 2/4","TUG_GEOORMERKTE_2YTRAVEL GRANT 2/4","UI","UI","UI02","0141",{"$f":"VLOOKUP(G116,Rekening!C:F,3,FALSE)","v":613330},{"$f":"VLOOKUP(G116,Rekening!C:F,4,FALSE)","v":"Reis- en verblijfkosten studenten"}]
["TUG_GEOORMERKTE_2Y","TRAVEL GRANT 3/4","TUG_GEOORMERKTE_2YTRAVEL GRANT 3/4","UI","UI","UI02","0151",{"$f":"VLOOKUP(G117,Rekening!C:F,3,FALSE)","v":613330},{"$f":"VLOOKUP(G117,Rekening!C:F,4,FALSE)","v":"Reis- en verblijfkosten studenten"}]
["TUG_GEOORMERKTE_2Y","TRAVEL GRANT 4/4","TUG_GEOORMERKTE_2YTRAVEL GRANT 4/4","UI","UI","UI02","0161",{"$f":"VLOOKUP(G118,Rekening!C:F,3,FALSE)","v":613330},{"$f":"VLOOKUP(G118,Rekening!C:F,4,FALSE)","v":"Reis- en verblijfkosten studenten"}]
["TUG_GEOORMERKTE_3Y","OTHER","TUG_GEOORMERKTE_3YOTHER","UI","UI","UI02","0121",{"$f":"VLOOKUP(G119,Rekening!C:F,3,FALSE)","v":613330},{"$f":"VLOOKUP(G119,Rekening!C:F,4,FALSE)","v":"Reis- en verblijfkosten studenten"}]
["TUG_GEOORMERKTE_3Y","SCHOLARSHIP","TUG_GEOORMERKTE_3YSCHOLARSHIP","UI","UI","UI02","0011",{"$f":"VLOOKUP(G120,Rekening!C:F,3,FALSE)","v":613420},{"$f":"VLOOKUP(G120,Rekening!C:F,4,FALSE)","v":"Bursalen"}]
["TUG_GEOORMERKTE_3Y","TRAVEL GRANT 1/4","TUG_GEOORMERKTE_3YTRAVEL GRANT 1/4","UI","UI","UI02","0131",{"$f":"VLOOKUP(G121,Rekening!C:F,3,FALSE)","v":613330},{"$f":"VLOOKUP(G121,Rekening!C:F,4,FALSE)","v":"Reis- en verblijfkosten studenten"}]
["TUG_GEOORMERKTE_3Y","TRAVEL GRANT 2/4","TUG_GEOORMERKTE_3YTRAVEL GRANT 2/4","UI","UI","UI02","0141",{"$f":"VLOOKUP(G122,Rekening!C:F,3,FALSE)","v":613330},{"$f":"VLOOKUP(G122,Rekening!C:F,4,FALSE)","v":"Reis- en verblijfkosten studenten"}]
["TUG_GEOORMERKTE_3Y","TRAVEL GRANT 3/4","TUG_GEOORMERKTE_3YTRAVEL GRANT 3/4","UI","UI","UI02","0151",{"$f":"VLOOKUP(G123,Rekening!C:F,3,FALSE)","v":613330},{"$f":"VLOOKUP(G123,Rekening!C:F,4,FALSE)","v":"Reis- en verblijfkosten studenten"}]
["TUG_GEOORMERKTE_3Y","TRAVEL GRANT 4/4","TUG_GEOORMERKTE_3YTRAVEL GRANT 4/4","UI","UI","UI02","0161",{"$f":"VLOOKUP(G124,Rekening!C:F,3,FALSE)","v":613330},{"$f":"VLOOKUP(G124,Rekening!C:F,4,FALSE)","v":"Reis- en verblijfkosten studenten"}]
["TUG_OTHER","OTHER","TUG_OTHEROTHER","UI","UI","UI02","0121",{"$f":"VLOOKUP(G125,Rekening!C:F,3,FALSE)","v":613330},{"$f":"VLOOKUP(G125,Rekening!C:F,4,FALSE)","v":"Reis- en verblijfkosten studenten"}]
["TUG_OTHER","SCHOLARSHIP","TUG_OTHERSCHOLARSHIP","UI","UI","UI02","0011",{"$f":"VLOOKUP(G126,Rekening!C:F,3,FALSE)","v":613420},{"$f":"VLOOKUP(G126,Rekening!C:F,4,FALSE)","v":"Bursalen"}]
["TUG_OTHER","TRAVEL GRANT 1/4","TUG_OTHERTRAVEL GRANT 1/4","UI","UI","UI02","0131",{"$f":"VLOOKUP(G127,Rekening!C:F,3,FALSE)","v":613330},{"$f":"VLOOKUP(G127,Rekening!C:F,4,FALSE)","v":"Reis- en verblijfkosten studenten"}]
["TUG_OTHER","TRAVEL GRANT 2/4","TUG_OTHERTRAVEL GRANT 2/4","UI","UI","UI02","0141",{"$f":"VLOOKUP(G128,Rekening!C:F,3,FALSE)","v":613330},{"$f":"VLOOKUP(G128,Rekening!C:F,4,FALSE)","v":"Reis- en verblijfkosten studenten"}]
["TUG_OTHER","TRAVEL GRANT 3/4","TUG_OTHERTRAVEL GRANT 3/4","UI","UI","UI02","0151",{"$f":"VLOOKUP(G129,Rekening!C:F,3,FALSE)","v":613330},{"$f":"VLOOKUP(G129,Rekening!C:F,4,FALSE)","v":"Reis- en verblijfkosten studenten"}]
["TUG_OTHER","TRAVEL GRANT 4/4",{"$f":"A130&B130","v":"TUG_OTHERTRAVEL GRANT 4/4"},"UI","UI","UI02","0161",{"$f":"VLOOKUP(G130,Rekening!C:F,3,FALSE)","v":613330},{"$f":"VLOOKUP(G130,Rekening!C:F,4,FALSE)","v":"Reis- en verblijfkosten studenten"}]
["VLIR_GLOBAL_MINDS","SCHOLARSHIP","VLIR_GLOBAL_MINDSSCHOLARSHIP","UI","UI","UI03",{"$f":"VLOOKUP(B131,Rekening!A:C,3,FALSE)","v":"0011"},{"$f":"VLOOKUP(G131,Rekening!C:F,3,FALSE)","v":613420},{"$f":"VLOOKUP(G131,Rekening!C:F,4,FALSE)","v":"Bursalen"}]
["VLIR_GLOBAL_MINDS","ACCOMODATION ALLOWANCE","VLIR_GLOBAL_MINDSACCOMODATION ALLOWANCE","UI","UI","UI03",{"$f":"VLOOKUP(B132,Rekening!A:C,3,FALSE)","v":"0021"},{"$f":"VLOOKUP(G132,Rekening!C:F,3,FALSE)","v":613330},{"$f":"VLOOKUP(G132,Rekening!C:F,4,FALSE)","v":"Reis- en verblijfkosten studenten"}]
["VLIR_GLOBAL_MINDS","INDIRECT TRAVEL COSTS","VLIR_GLOBAL_MINDSINDIRECT TRAVEL COSTS","UI","UI","UI03",{"$f":"VLOOKUP(B133,Rekening!A:C,3,FALSE)","v":"0031"},{"$f":"VLOOKUP(G133,Rekening!C:F,3,FALSE)","v":613330},{"$f":"VLOOKUP(G133,Rekening!C:F,4,FALSE)","v":"Reis- en verblijfkosten studenten"}]
["VLIR_GLOBAL_MINDS","INSTALLATION ALLOWANCE","VLIR_GLOBAL_MINDSINSTALLATION ALLOWANCE","UI","UI","UI03",{"$f":"VLOOKUP(B134,Rekening!A:C,3,FALSE)","v":"0041"},{"$f":"VLOOKUP(G134,Rekening!C:F,3,FALSE)","v":613330},{"$f":"VLOOKUP(G134,Rekening!C:F,4,FALSE)","v":"Reis- en verblijfkosten studenten"}]
["VLIR_GLOBAL_MINDS","DIDACTIC ALLOWANCE","VLIR_GLOBAL_MINDSDIDACTIC ALLOWANCE","UI","UI","UI03",{"$f":"VLOOKUP(B135,Rekening!A:C,3,FALSE)","v":"0241"},{"$f":"VLOOKUP(G135,Rekening!C:F,3,FALSE)","v":613330},{"$f":"VLOOKUP(G135,Rekening!C:F,4,FALSE)","v":"Reis- en verblijfkosten studenten"}]
["VLIR_GLOBAL_MINDS","DIDACTIC ALLOWANCE MSC Y1","VLIR_GLOBAL_MINDSDIDACTIC ALLOWANCE MSC Y1","UI","UI","UI03",{"$f":"VLOOKUP(B136,Rekening!A:C,3,FALSE)","v":"0251"},{"$f":"VLOOKUP(G136,Rekening!C:F,3,FALSE)","v":613330},{"$f":"VLOOKUP(G136,Rekening!C:F,4,FALSE)","v":"Reis- en verblijfkosten studenten"}]
["VLIR_GLOBAL_MINDS","DIDACTIC ALLOWANCE MSC Y2","VLIR_GLOBAL_MINDSDIDACTIC ALLOWANCE MSC Y2","UI","UI","UI03",{"$f":"VLOOKUP(B137,Rekening!A:C,3,FALSE)","v":"0261"},{"$f":"VLOOKUP(G137,Rekening!C:F,3,FALSE)","v":613330},{"$f":"VLOOKUP(G137,Rekening!C:F,4,FALSE)","v":"Reis- en verblijfkosten studenten"}]
["VLIR_GLOBAL_MINDS","MAILING ALLOWANCE","VLIR_GLOBAL_MINDSMAILING ALLOWANCE","UI","UI","UI03",{"$f":"VLOOKUP(B138,Rekening!A:C,3,FALSE)","v":"0061"},{"$f":"VLOOKUP(G138,Rekening!C:F,3,FALSE)","v":613330},{"$f":"VLOOKUP(G138,Rekening!C:F,4,FALSE)","v":"Reis- en verblijfkosten studenten"}]
["VLIR_GLOBAL_MINDS","TUITION FEE","VLIR_GLOBAL_MINDSTUITION FEE","UI","UI","UI03",{"$f":"VLOOKUP(B139,Rekening!A:C,3,FALSE)","v":"0071"},{"$f":"VLOOKUP(G139,Rekening!C:F,3,FALSE)","v":613420},{"$f":"VLOOKUP(G139,Rekening!C:F,4,FALSE)","v":"Bursalen"}]
["VLIR_GLOBAL_MINDS","FAMILY SUPPLEMENT","VLIR_GLOBAL_MINDSFAMILY SUPPLEMENT","UI","UI","UI03",{"$f":"VLOOKUP(B140,Rekening!A:C,3,FALSE)","v":"0081"},{"$f":"VLOOKUP(G140,Rekening!C:F,3,FALSE)","v":613330},{"$f":"VLOOKUP(G140,Rekening!C:F,4,FALSE)","v":"Reis- en verblijfkosten studenten"}]
["VLIR_GLOBAL_MINDS","PROGRAM RELATED TRAVEL COSTS","VLIR_GLOBAL_MINDSPROGRAM RELATED TRAVEL COSTS","UI","UI","UI03",{"$f":"VLOOKUP(B141,Rekening!A:C,3,FALSE)","v":"0091"},{"$f":"VLOOKUP(G141,Rekening!C:F,3,FALSE)","v":613330},{"$f":"VLOOKUP(G141,Rekening!C:F,4,FALSE)","v":"Reis- en verblijfkosten studenten"}]
["VLIR_GLOBAL_MINDS","AIRLINE TICKET","VLIR_GLOBAL_MINDSAIRLINE TICKET","UI","UI","UI03",{"$f":"VLOOKUP(B142,Rekening!A:C,3,FALSE)","v":"0101"},{"$f":"VLOOKUP(G142,Rekening!C:F,3,FALSE)","v":613330},{"$f":"VLOOKUP(G142,Rekening!C:F,4,FALSE)","v":"Reis- en verblijfkosten studenten"}]
["VLIR_GLOBAL_MINDS","PER DIEM","VLIR_GLOBAL_MINDSPER DIEM","UI","UI","UI03",{"$f":"VLOOKUP(B143,Rekening!A:C,3,FALSE)","v":"0111"},{"$f":"VLOOKUP(G143,Rekening!C:F,3,FALSE)","v":613330},{"$f":"VLOOKUP(G143,Rekening!C:F,4,FALSE)","v":"Reis- en verblijfkosten studenten"}]
["VLIR_GLOBAL_MINDS","CONFERENCE PARTICIPATION","VLIR_GLOBAL_MINDSCONFERENCE PARTICIPATION","UI","UI","UI03",{"$f":"VLOOKUP(B144,Rekening!A:C,3,FALSE)","v":"0271"},{"$f":"VLOOKUP(G144,Rekening!C:F,3,FALSE)","v":613330},{"$f":"VLOOKUP(G144,Rekening!C:F,4,FALSE)","v":"Reis- en verblijfkosten studenten"}]
["VLIR_GLOBAL_MINDS","HOTEL","VLIR_GLOBAL_MINDSHOTEL","UI","UI","UI03",{"$f":"VLOOKUP(B145,Rekening!A:C,3,FALSE)","v":"0281"},{"$f":"VLOOKUP(G145,Rekening!C:F,3,FALSE)","v":613330},{"$f":"VLOOKUP(G145,Rekening!C:F,4,FALSE)","v":"Reis- en verblijfkosten studenten"}]
["VLIR_GLOBAL_MINDS","OTHER ","VLIR_GLOBAL_MINDSOTHER ","UI","UI","UI03",{"$f":"VLOOKUP(B146,Rekening!A:C,3,FALSE)","v":"0291"},{"$f":"VLOOKUP(G146,Rekening!C:F,3,FALSE)","v":613330},{"$f":"VLOOKUP(G146,Rekening!C:F,4,FALSE)","v":"Reis- en verblijfkosten studenten"}]
["VLIR_GLOBAL_MINDS","LOCAL HOTEL","VLIR_GLOBAL_MINDSLOCAL HOTEL","UI","UI","UI03",{"$f":"VLOOKUP(B147,Rekening!A:C,3,FALSE)","v":"0331"},{"$f":"VLOOKUP(G147,Rekening!C:F,3,FALSE)","v":613330},{"$f":"VLOOKUP(G147,Rekening!C:F,4,FALSE)","v":"Reis- en verblijfkosten studenten"}]
["VLIR_GLOBAL_MINDS","LOCAL TRAVEL COSTS","VLIR_GLOBAL_MINDSLOCAL TRAVEL COSTS","UI","UI","UI03",{"$f":"VLOOKUP(B148,Rekening!A:C,3,FALSE)","v":"0341"},{"$f":"VLOOKUP(G148,Rekening!C:F,3,FALSE)","v":613330},{"$f":"VLOOKUP(G148,Rekening!C:F,4,FALSE)","v":"Reis- en verblijfkosten studenten"}]
["VLIR_ICP_1Y","ACCOMODATION ALLOWANCE","VLIR_ICP_1YACCOMODATION ALLOWANCE","UI","UI","UI03",{"$f":"VLOOKUP(B149,Rekening!A:C,3,FALSE)","v":"0021"},{"$f":"VLOOKUP(G149,Rekening!C:F,3,FALSE)","v":613330},{"$f":"VLOOKUP(G149,Rekening!C:F,4,FALSE)","v":"Reis- en verblijfkosten studenten"}]
["VLIR_ICP_1Y","AIRLINE TICKET","VLIR_ICP_1YAIRLINE TICKET","UI","UI","UI03",{"$f":"VLOOKUP(B150,Rekening!A:C,3,FALSE)","v":"0101"},{"$f":"VLOOKUP(G150,Rekening!C:F,3,FALSE)","v":613330},{"$f":"VLOOKUP(G150,Rekening!C:F,4,FALSE)","v":"Reis- en verblijfkosten studenten"}]
["VLIR_ICP_1Y","DIDACTIC ALLOWANCE Y1","VLIR_ICP_1YDIDACTIC ALLOWANCE Y1","UI","UI","UI03",{"$f":"VLOOKUP(B151,Rekening!A:C,3,FALSE)","v":"0051"},{"$f":"VLOOKUP(G151,Rekening!C:F,3,FALSE)","v":613330},{"$f":"VLOOKUP(G151,Rekening!C:F,4,FALSE)","v":"Reis- en verblijfkosten studenten"}]
["VLIR_ICP_1Y","DIDACTIC ALLOWANCE Y2","VLIR_ICP_1YDIDACTIC ALLOWANCE Y2","UI","UI","UI03",{"$f":"VLOOKUP(B152,Rekening!A:C,3,FALSE)","v":"0051"},{"$f":"VLOOKUP(G152,Rekening!C:F,3,FALSE)","v":613330},{"$f":"VLOOKUP(G152,Rekening!C:F,4,FALSE)","v":"Reis- en verblijfkosten studenten"}]
["VLIR_ICP_1Y","FAMILY SUPPLEMENT","VLIR_ICP_1YFAMILY SUPPLEMENT","UI","UI","UI03",{"$f":"VLOOKUP(B153,Rekening!A:C,3,FALSE)","v":"0081"},{"$f":"VLOOKUP(G153,Rekening!C:F,3,FALSE)","v":613330},{"$f":"VLOOKUP(G153,Rekening!C:F,4,FALSE)","v":"Reis- en verblijfkosten studenten"}]
["VLIR_ICP_1Y","INDIRECT TRAVEL COSTS","VLIR_ICP_1YINDIRECT TRAVEL COSTS","UI","UI","UI03",{"$f":"VLOOKUP(B154,Rekening!A:C,3,FALSE)","v":"0031"},{"$f":"VLOOKUP(G154,Rekening!C:F,3,FALSE)","v":613330},{"$f":"VLOOKUP(G154,Rekening!C:F,4,FALSE)","v":"Reis- en verblijfkosten studenten"}]
["VLIR_ICP_1Y","INSTALLATION ALLOWANCE","VLIR_ICP_1YINSTALLATION ALLOWANCE","UI","UI","UI03",{"$f":"VLOOKUP(B155,Rekening!A:C,3,FALSE)","v":"0041"},{"$f":"VLOOKUP(G155,Rekening!C:F,3,FALSE)","v":613330},{"$f":"VLOOKUP(G155,Rekening!C:F,4,FALSE)","v":"Reis- en verblijfkosten studenten"}]
["VLIR_ICP_1Y","MAILING ALLOWANCE","VLIR_ICP_1YMAILING ALLOWANCE","UI","UI","UI03",{"$f":"VLOOKUP(B156,Rekening!A:C,3,FALSE)","v":"0061"},{"$f":"VLOOKUP(G156,Rekening!C:F,3,FALSE)","v":613330},{"$f":"VLOOKUP(G156,Rekening!C:F,4,FALSE)","v":"Reis- en verblijfkosten studenten"}]
["VLIR_ICP_1Y","OTHER","VLIR_ICP_1YOTHER","UI","UI","UI03",{"$f":"VLOOKUP(B157,Rekening!A:C,3,FALSE)","v":"0121"},{"$f":"VLOOKUP(G157,Rekening!C:F,3,FALSE)","v":613330},{"$f":"VLOOKUP(G157,Rekening!C:F,4,FALSE)","v":"Reis- en verblijfkosten studenten"}]
["VLIR_ICP_1Y","PER DIEM","VLIR_ICP_1YPER DIEM","UI","UI","UI03",{"$f":"VLOOKUP(B158,Rekening!A:C,3,FALSE)","v":"0111"},{"$f":"VLOOKUP(G158,Rekening!C:F,3,FALSE)","v":613330},{"$f":"VLOOKUP(G158,Rekening!C:F,4,FALSE)","v":"Reis- en verblijfkosten studenten"}]
["VLIR_ICP_1Y","PROGRAM RELATED TRAVEL COSTS","VLIR_ICP_1YPROGRAM RELATED TRAVEL COSTS","UI","UI","UI03",{"$f":"VLOOKUP(B159,Rekening!A:C,3,FALSE)","v":"0091"},{"$f":"VLOOKUP(G159,Rekening!C:F,3,FALSE)","v":613330},{"$f":"VLOOKUP(G159,Rekening!C:F,4,FALSE)","v":"Reis- en verblijfkosten studenten"}]
["VLIR_ICP_1Y","SCHOLARSHIP","VLIR_ICP_1YSCHOLARSHIP","UI","UI","UI03",{"$f":"VLOOKUP(B160,Rekening!A:C,3,FALSE)","v":"0011"},{"$f":"VLOOKUP(G160,Rekening!C:F,3,FALSE)","v":613420},{"$f":"VLOOKUP(G160,Rekening!C:F,4,FALSE)","v":"Bursalen"}]
["VLIR_ICP_1Y","TUITION FEE","VLIR_ICP_1YTUITION FEE","UI","UI","UI03",{"$f":"VLOOKUP(B161,Rekening!A:C,3,FALSE)","v":"0071"},{"$f":"VLOOKUP(G161,Rekening!C:F,3,FALSE)","v":613420},{"$f":"VLOOKUP(G161,Rekening!C:F,4,FALSE)","v":"Bursalen"}]
["VLIR_ICP_2Y","ACCOMODATION ALLOWANCE","VLIR_ICP_2YACCOMODATION ALLOWANCE","UI","UI","UI03",{"$f":"VLOOKUP(B162,Rekening!A:C,3,FALSE)","v":"0021"},{"$f":"VLOOKUP(G162,Rekening!C:F,3,FALSE)","v":613330},{"$f":"VLOOKUP(G162,Rekening!C:F,4,FALSE)","v":"Reis- en verblijfkosten studenten"}]
["VLIR_ICP_2Y","AIRLINE TICKET","VLIR_ICP_2YAIRLINE TICKET","UI","UI","UI03",{"$f":"VLOOKUP(B163,Rekening!A:C,3,FALSE)","v":"0101"},{"$f":"VLOOKUP(G163,Rekening!C:F,3,FALSE)","v":613330},{"$f":"VLOOKUP(G163,Rekening!C:F,4,FALSE)","v":"Reis- en verblijfkosten studenten"}]
["VLIR_ICP_2Y","DIDACTIC ALLOWANCE Y1","VLIR_ICP_2YDIDACTIC ALLOWANCE Y1","UI","UI","UI03",{"$f":"VLOOKUP(B164,Rekening!A:C,3,FALSE)","v":"0051"},{"$f":"VLOOKUP(G164,Rekening!C:F,3,FALSE)","v":613330},{"$f":"VLOOKUP(G164,Rekening!C:F,4,FALSE)","v":"Reis- en verblijfkosten studenten"}]
["VLIR_ICP_2Y","DIDACTIC ALLOWANCE Y2","VLIR_ICP_2YDIDACTIC ALLOWANCE Y2","UI","UI","UI03",{"$f":"VLOOKUP(B165,Rekening!A:C,3,FALSE)","v":"0051"},{"$f":"VLOOKUP(G165,Rekening!C:F,3,FALSE)","v":613330},{"$f":"VLOOKUP(G165,Rekening!C:F,4,FALSE)","v":"Reis- en verblijfkosten studenten"}]
["VLIR_ICP_2Y","FAMILY SUPPLEMENT","VLIR_ICP_2YFAMILY SUPPLEMENT","UI","UI","UI03",{"$f":"VLOOKUP(B166,Rekening!A:C,3,FALSE)","v":"0081"},{"$f":"VLOOKUP(G166,Rekening!C:F,3,FALSE)","v":613330},{"$f":"VLOOKUP(G166,Rekening!C:F,4,FALSE)","v":"Reis- en verblijfkosten studenten"}]
["VLIR_ICP_2Y","INDIRECT TRAVEL COSTS","VLIR_ICP_2YINDIRECT TRAVEL COSTS","UI","UI","UI03",{"$f":"VLOOKUP(B167,Rekening!A:C,3,FALSE)","v":"0031"},{"$f":"VLOOKUP(G167,Rekening!C:F,3,FALSE)","v":613330},{"$f":"VLOOKUP(G167,Rekening!C:F,4,FALSE)","v":"Reis- en verblijfkosten studenten"}]
["VLIR_ICP_2Y","INSTALLATION ALLOWANCE","VLIR_ICP_2YINSTALLATION ALLOWANCE","UI","UI","UI03",{"$f":"VLOOKUP(B168,Rekening!A:C,3,FALSE)","v":"0041"},{"$f":"VLOOKUP(G168,Rekening!C:F,3,FALSE)","v":613330},{"$f":"VLOOKUP(G168,Rekening!C:F,4,FALSE)","v":"Reis- en verblijfkosten studenten"}]
["VLIR_ICP_2Y","MAILING ALLOWANCE","VLIR_ICP_2YMAILING ALLOWANCE","UI","UI","UI03",{"$f":"VLOOKUP(B169,Rekening!A:C,3,FALSE)","v":"0061"},{"$f":"VLOOKUP(G169,Rekening!C:F,3,FALSE)","v":613330},{"$f":"VLOOKUP(G169,Rekening!C:F,4,FALSE)","v":"Reis- en verblijfkosten studenten"}]
["VLIR_ICP_2Y","OTHER","VLIR_ICP_2YOTHER","UI","UI","UI03",{"$f":"VLOOKUP(B170,Rekening!A:C,3,FALSE)","v":"0121"},{"$f":"VLOOKUP(G170,Rekening!C:F,3,FALSE)","v":613330},{"$f":"VLOOKUP(G170,Rekening!C:F,4,FALSE)","v":"Reis- en verblijfkosten studenten"}]
["VLIR_ICP_2Y","PER DIEM","VLIR_ICP_2YPER DIEM","UI","UI","UI03",{"$f":"VLOOKUP(B171,Rekening!A:C,3,FALSE)","v":"0111"},{"$f":"VLOOKUP(G171,Rekening!C:F,3,FALSE)","v":613330},{"$f":"VLOOKUP(G171,Rekening!C:F,4,FALSE)","v":"Reis- en verblijfkosten studenten"}]
["VLIR_ICP_2Y","PROGRAM RELATED TRAVEL COSTS","VLIR_ICP_2YPROGRAM RELATED TRAVEL COSTS","UI","UI","UI03",{"$f":"VLOOKUP(B172,Rekening!A:C,3,FALSE)","v":"0091"},{"$f":"VLOOKUP(G172,Rekening!C:F,3,FALSE)","v":613330},{"$f":"VLOOKUP(G172,Rekening!C:F,4,FALSE)","v":"Reis- en verblijfkosten studenten"}]
["VLIR_ICP_2Y","SCHOLARSHIP","VLIR_ICP_2YSCHOLARSHIP","UI","UI","UI03",{"$f":"VLOOKUP(B173,Rekening!A:C,3,FALSE)","v":"0011"},{"$f":"VLOOKUP(G173,Rekening!C:F,3,FALSE)","v":613420},{"$f":"VLOOKUP(G173,Rekening!C:F,4,FALSE)","v":"Bursalen"}]
["VLIR_ICP_2Y","TUITION FEE","VLIR_ICP_2YTUITION FEE","UI","UI","UI03",{"$f":"VLOOKUP(B174,Rekening!A:C,3,FALSE)","v":"0071"},{"$f":"VLOOKUP(G174,Rekening!C:F,3,FALSE)","v":613420},{"$f":"VLOOKUP(G174,Rekening!C:F,4,FALSE)","v":"Bursalen"}]
["VLIR_ICP_3Y","ACCOMODATION ALLOWANCE","VLIR_ICP_3YACCOMODATION ALLOWANCE","UI","UI","UI03",{"$f":"VLOOKUP(B175,Rekening!A:C,3,FALSE)","v":"0021"},{"$f":"VLOOKUP(G175,Rekening!C:F,3,FALSE)","v":613330},{"$f":"VLOOKUP(G175,Rekening!C:F,4,FALSE)","v":"Reis- en verblijfkosten studenten"}]
["VLIR_ICP_3Y","AIRLINE TICKET","VLIR_ICP_3YAIRLINE TICKET","UI","UI","UI03",{"$f":"VLOOKUP(B176,Rekening!A:C,3,FALSE)","v":"0101"},{"$f":"VLOOKUP(G176,Rekening!C:F,3,FALSE)","v":613330},{"$f":"VLOOKUP(G176,Rekening!C:F,4,FALSE)","v":"Reis- en verblijfkosten studenten"}]
["VLIR_ICP_3Y","DIDACTIC ALLOWANCE Y1","VLIR_ICP_3YDIDACTIC ALLOWANCE Y1","UI","UI","UI03",{"$f":"VLOOKUP(B177,Rekening!A:C,3,FALSE)","v":"0051"},{"$f":"VLOOKUP(G177,Rekening!C:F,3,FALSE)","v":613330},{"$f":"VLOOKUP(G177,Rekening!C:F,4,FALSE)","v":"Reis- en verblijfkosten studenten"}]
["VLIR_ICP_3Y","DIDACTIC ALLOWANCE Y2","VLIR_ICP_3YDIDACTIC ALLOWANCE Y2","UI","UI","UI03",{"$f":"VLOOKUP(B178,Rekening!A:C,3,FALSE)","v":"0051"},{"$f":"VLOOKUP(G178,Rekening!C:F,3,FALSE)","v":613330},{"$f":"VLOOKUP(G178,Rekening!C:F,4,FALSE)","v":"Reis- en verblijfkosten studenten"}]
["VLIR_ICP_3Y","FAMILY SUPPLEMENT","VLIR_ICP_3YFAMILY SUPPLEMENT","UI","UI","UI03",{"$f":"VLOOKUP(B179,Rekening!A:C,3,FALSE)","v":"0081"},{"$f":"VLOOKUP(G179,Rekening!C:F,3,FALSE)","v":613330},{"$f":"VLOOKUP(G179,Rekening!C:F,4,FALSE)","v":"Reis- en verblijfkosten studenten"}]
["VLIR_ICP_3Y","INDIRECT TRAVEL COSTS","VLIR_ICP_3YINDIRECT TRAVEL COSTS","UI","UI","UI03",{"$f":"VLOOKUP(B180,Rekening!A:C,3,FALSE)","v":"0031"},{"$f":"VLOOKUP(G180,Rekening!C:F,3,FALSE)","v":613330},{"$f":"VLOOKUP(G180,Rekening!C:F,4,FALSE)","v":"Reis- en verblijfkosten studenten"}]
["VLIR_ICP_3Y","INSTALLATION ALLOWANCE","VLIR_ICP_3YINSTALLATION ALLOWANCE","UI","UI","UI03",{"$f":"VLOOKUP(B181,Rekening!A:C,3,FALSE)","v":"0041"},{"$f":"VLOOKUP(G181,Rekening!C:F,3,FALSE)","v":613330},{"$f":"VLOOKUP(G181,Rekening!C:F,4,FALSE)","v":"Reis- en verblijfkosten studenten"}]
["VLIR_ICP_3Y","MAILING ALLOWANCE","VLIR_ICP_3YMAILING ALLOWANCE","UI","UI","UI03",{"$f":"VLOOKUP(B182,Rekening!A:C,3,FALSE)","v":"0061"},{"$f":"VLOOKUP(G182,Rekening!C:F,3,FALSE)","v":613330},{"$f":"VLOOKUP(G182,Rekening!C:F,4,FALSE)","v":"Reis- en verblijfkosten studenten"}]
["VLIR_ICP_3Y","OTHER","VLIR_ICP_3YOTHER","UI","UI","UI03",{"$f":"VLOOKUP(B183,Rekening!A:C,3,FALSE)","v":"0121"},{"$f":"VLOOKUP(G183,Rekening!C:F,3,FALSE)","v":613330},{"$f":"VLOOKUP(G183,Rekening!C:F,4,FALSE)","v":"Reis- en verblijfkosten studenten"}]
["VLIR_ICP_3Y","PER DIEM","VLIR_ICP_3YPER DIEM","UI","UI","UI03",{"$f":"VLOOKUP(B184,Rekening!A:C,3,FALSE)","v":"0111"},{"$f":"VLOOKUP(G184,Rekening!C:F,3,FALSE)","v":613330},{"$f":"VLOOKUP(G184,Rekening!C:F,4,FALSE)","v":"Reis- en verblijfkosten studenten"}]
["VLIR_ICP_3Y","PROGRAM RELATED TRAVEL COSTS","VLIR_ICP_3YPROGRAM RELATED TRAVEL COSTS","UI","UI","UI03",{"$f":"VLOOKUP(B185,Rekening!A:C,3,FALSE)","v":"0091"},{"$f":"VLOOKUP(G185,Rekening!C:F,3,FALSE)","v":613330},{"$f":"VLOOKUP(G185,Rekening!C:F,4,FALSE)","v":"Reis- en verblijfkosten studenten"}]
["VLIR_ICP_3Y","SCHOLARSHIP","VLIR_ICP_3YSCHOLARSHIP","UI","UI","UI03",{"$f":"VLOOKUP(B186,Rekening!A:C,3,FALSE)","v":"0011"},{"$f":"VLOOKUP(G186,Rekening!C:F,3,FALSE)","v":613420},{"$f":"VLOOKUP(G186,Rekening!C:F,4,FALSE)","v":"Bursalen"}]
["VLIR_ICP_3Y","TUITION FEE","VLIR_ICP_3YTUITION FEE","UI","UI","UI03",{"$f":"VLOOKUP(B187,Rekening!A:C,3,FALSE)","v":"0071"},{"$f":"VLOOKUP(G187,Rekening!C:F,3,FALSE)","v":613420},{"$f":"VLOOKUP(G187,Rekening!C:F,4,FALSE)","v":"Bursalen"}]
["VLIR_ICP_PHD","SCHOLARSHIP","VLIR_ICP_PHDSCHOLARSHIP","UI","UI","UI03",{"$f":"VLOOKUP(B188,Rekening!A:C,3,FALSE)","v":"0011"},{"$f":"VLOOKUP(G188,Rekening!C:F,3,FALSE)","v":613420},{"$f":"VLOOKUP(G188,Rekening!C:F,4,FALSE)","v":"Bursalen"}]
["VLIR_ICP_PHD","ACCOMODATION ALLOWANCE","VLIR_ICP_PHDACCOMODATION ALLOWANCE","UI","UI","UI03",{"$f":"VLOOKUP(B189,Rekening!A:C,3,FALSE)","v":"0021"},{"$f":"VLOOKUP(G189,Rekening!C:F,3,FALSE)","v":613330},{"$f":"VLOOKUP(G189,Rekening!C:F,4,FALSE)","v":"Reis- en verblijfkosten studenten"}]
["VLIR_ICP_PHD","INDIRECT TRAVEL COSTS","VLIR_ICP_PHDINDIRECT TRAVEL COSTS","UI","UI","UI03",{"$f":"VLOOKUP(B190,Rekening!A:C,3,FALSE)","v":"0031"},{"$f":"VLOOKUP(G190,Rekening!C:F,3,FALSE)","v":613330},{"$f":"VLOOKUP(G190,Rekening!C:F,4,FALSE)","v":"Reis- en verblijfkosten studenten"}]
["VLIR_ICP_PHD","INSTALLATION ALLOWANCE","VLIR_ICP_PHDINSTALLATION ALLOWANCE","UI","UI","UI03",{"$f":"VLOOKUP(B191,Rekening!A:C,3,FALSE)","v":"0041"},{"$f":"VLOOKUP(G191,Rekening!C:F,3,FALSE)","v":613330},{"$f":"VLOOKUP(G191,Rekening!C:F,4,FALSE)","v":"Reis- en verblijfkosten studenten"}]
["VLIR_ICP_PHD","DIDACTIC ALLOWANCE","VLIR_ICP_PHDDIDACTIC ALLOWANCE","UI","UI","UI03",{"$f":"VLOOKUP(B192,Rekening!A:C,3,FALSE)","v":"0241"},{"$f":"VLOOKUP(G192,Rekening!C:F,3,FALSE)","v":613330},{"$f":"VLOOKUP(G192,Rekening!C:F,4,FALSE)","v":"Reis- en verblijfkosten studenten"}]
["VLIR_ICP_PHD","DIDACTIC ALLOWANCE MSC Y1","VLIR_ICP_PHDDIDACTIC ALLOWANCE MSC Y1","UI","UI","UI03",{"$f":"VLOOKUP(B193,Rekening!A:C,3,FALSE)","v":"0251"},{"$f":"VLOOKUP(G193,Rekening!C:F,3,FALSE)","v":613330},{"$f":"VLOOKUP(G193,Rekening!C:F,4,FALSE)","v":"Reis- en verblijfkosten studenten"}]
["VLIR_ICP_PHD","DIDACTIC ALLOWANCE MSC Y2",{"$f":"A194&B194","v":"VLIR_ICP_PHDDIDACTIC ALLOWANCE MSC Y2"},"UI","UI","UI03",{"$f":"VLOOKUP(B194,Rekening!A:C,3,FALSE)","v":"0261"},{"$f":"VLOOKUP(G194,Rekening!C:F,3,FALSE)","v":613330},{"$f":"VLOOKUP(G194,Rekening!C:F,4,FALSE)","v":"Reis- en verblijfkosten studenten"}]
["VLIR_ICP_PHD","MAILING ALLOWANCE","VLIR_ICP_PHDMAILING ALLOWANCE","UI","UI","UI03",{"$f":"VLOOKUP(B195,Rekening!A:C,3,FALSE)","v":"0061"},{"$f":"VLOOKUP(G195,Rekening!C:F,3,FALSE)","v":613330},{"$f":"VLOOKUP(G195,Rekening!C:F,4,FALSE)","v":"Reis- en verblijfkosten studenten"}]
["VLIR_ICP_PHD","TUITION FEE","VLIR_ICP_PHDTUITION FEE","UI","UI","UI03",{"$f":"VLOOKUP(B196,Rekening!A:C,3,FALSE)","v":"0071"},{"$f":"VLOOKUP(G196,Rekening!C:F,3,FALSE)","v":613420},{"$f":"VLOOKUP(G196,Rekening!C:F,4,FALSE)","v":"Bursalen"}]
["VLIR_ICP_PHD","FAMILY SUPPLEMENT","VLIR_ICP_PHDFAMILY SUPPLEMENT","UI","UI","UI03",{"$f":"VLOOKUP(B197,Rekening!A:C,3,FALSE)","v":"0081"},{"$f":"VLOOKUP(G197,Rekening!C:F,3,FALSE)","v":613330},{"$f":"VLOOKUP(G197,Rekening!C:F,4,FALSE)","v":"Reis- en verblijfkosten studenten"}]
["VLIR_ICP_PHD","PROGRAM RELATED TRAVEL COSTS","VLIR_ICP_PHDPROGRAM RELATED TRAVEL COSTS","UI","UI","UI03",{"$f":"VLOOKUP(B198,Rekening!A:C,3,FALSE)","v":"0091"},{"$f":"VLOOKUP(G198,Rekening!C:F,3,FALSE)","v":613330},{"$f":"VLOOKUP(G198,Rekening!C:F,4,FALSE)","v":"Reis- en verblijfkosten studenten"}]
["VLIR_ICP_PHD","AIRLINE TICKET","VLIR_ICP_PHDAIRLINE TICKET","UI","UI","UI03",{"$f":"VLOOKUP(B199,Rekening!A:C,3,FALSE)","v":"0101"},{"$f":"VLOOKUP(G199,Rekening!C:F,3,FALSE)","v":613330},{"$f":"VLOOKUP(G199,Rekening!C:F,4,FALSE)","v":"Reis- en verblijfkosten studenten"}]
["VLIR_ICP_PHD","PER DIEM","VLIR_ICP_PHDPER DIEM","UI","UI","UI03",{"$f":"VLOOKUP(B200,Rekening!A:C,3,FALSE)","v":"0111"},{"$f":"VLOOKUP(G200,Rekening!C:F,3,FALSE)","v":613330},{"$f":"VLOOKUP(G200,Rekening!C:F,4,FALSE)","v":"Reis- en verblijfkosten studenten"}]
["VLIR_ICP_PHD","CONFERENCE PARTICIPATION","VLIR_ICP_PHDCONFERENCE PARTICIPATION","UI","UI","UI03",{"$f":"VLOOKUP(B201,Rekening!A:C,3,FALSE)","v":"0271"},{"$f":"VLOOKUP(G201,Rekening!C:F,3,FALSE)","v":613330},{"$f":"VLOOKUP(G201,Rekening!C:F,4,FALSE)","v":"Reis- en verblijfkosten studenten"}]
["VLIR_ICP_PHD","HOTEL","VLIR_ICP_PHDHOTEL","UI","UI","UI03",{"$f":"VLOOKUP(B202,Rekening!A:C,3,FALSE)","v":"0281"},{"$f":"VLOOKUP(G202,Rekening!C:F,3,FALSE)","v":613330},{"$f":"VLOOKUP(G202,Rekening!C:F,4,FALSE)","v":"Reis- en verblijfkosten studenten"}]
["VLIR_ICP_PHD","OTHER ","VLIR_ICP_PHDOTHER ","UI","UI","UI03",{"$f":"VLOOKUP(B203,Rekening!A:C,3,FALSE)","v":"0291"},{"$f":"VLOOKUP(G203,Rekening!C:F,3,FALSE)","v":613330},{"$f":"VLOOKUP(G203,Rekening!C:F,4,FALSE)","v":"Reis- en verblijfkosten studenten"}]
["VLIR_ICP_PHD","LOCAL HOTEL","VLIR_ICP_PHDLOCAL HOTEL","UI","UI","UI03",{"$f":"VLOOKUP(B204,Rekening!A:C,3,FALSE)","v":"0331"},{"$f":"VLOOKUP(G204,Rekening!C:F,3,FALSE)","v":613330},{"$f":"VLOOKUP(G204,Rekening!C:F,4,FALSE)","v":"Reis- en verblijfkosten studenten"}]
["VLIR_ICP_PHD","LOCAL TRAVEL COSTS","VLIR_ICP_PHDLOCAL TRAVEL COSTS","UI","UI","UI03",{"$f":"VLOOKUP(B205,Rekening!A:C,3,FALSE)","v":"0341"},{"$f":"VLOOKUP(G205,Rekening!C:F,3,FALSE)","v":613330},{"$f":"VLOOKUP(G205,Rekening!C:F,4,FALSE)","v":"Reis- en verblijfkosten studenten"}]
["VLIR_IUC_NETWORK","SCHOLARSHIP","VLIR_IUC_NETWORKSCHOLARSHIP","UI","UI","UI03",{"$f":"VLOOKUP(B206,Rekening!A:C,3,FALSE)","v":"0011"},{"$f":"VLOOKUP(G206,Rekening!C:F,3,FALSE)","v":613420},{"$f":"VLOOKUP(G206,Rekening!C:F,4,FALSE)","v":"Bursalen"}]
["VLIR_IUC_NETWORK","ACCOMODATION ALLOWANCE","VLIR_IUC_NETWORKACCOMODATION ALLOWANCE","UI","UI","UI03",{"$f":"VLOOKUP(B207,Rekening!A:C,3,FALSE)","v":"0021"},{"$f":"VLOOKUP(G207,Rekening!C:F,3,FALSE)","v":613330},{"$f":"VLOOKUP(G207,Rekening!C:F,4,FALSE)","v":"Reis- en verblijfkosten studenten"}]
["VLIR_IUC_NETWORK","INDIRECT TRAVEL COSTS","VLIR_IUC_NETWORKINDIRECT TRAVEL COSTS","UI","UI","UI03",{"$f":"VLOOKUP(B208,Rekening!A:C,3,FALSE)","v":"0031"},{"$f":"VLOOKUP(G208,Rekening!C:F,3,FALSE)","v":613330},{"$f":"VLOOKUP(G208,Rekening!C:F,4,FALSE)","v":"Reis- en verblijfkosten studenten"}]
["VLIR_IUC_NETWORK","INSTALLATION ALLOWANCE","VLIR_IUC_NETWORKINSTALLATION ALLOWANCE","UI","UI","UI03",{"$f":"VLOOKUP(B209,Rekening!A:C,3,FALSE)","v":"0041"},{"$f":"VLOOKUP(G209,Rekening!C:F,3,FALSE)","v":613330},{"$f":"VLOOKUP(G209,Rekening!C:F,4,FALSE)","v":"Reis- en verblijfkosten studenten"}]
["VLIR_IUC_NETWORK","DIDACTIC ALLOWANCE","VLIR_IUC_NETWORKDIDACTIC ALLOWANCE","UI","UI","UI03",{"$f":"VLOOKUP(B210,Rekening!A:C,3,FALSE)","v":"0241"},{"$f":"VLOOKUP(G210,Rekening!C:F,3,FALSE)","v":613330},{"$f":"VLOOKUP(G210,Rekening!C:F,4,FALSE)","v":"Reis- en verblijfkosten studenten"}]
["VLIR_IUC_NETWORK","DIDACTIC ALLOWANCE MSC Y1","VLIR_IUC_NETWORKDIDACTIC ALLOWANCE MSC Y1","UI","UI","UI03",{"$f":"VLOOKUP(B211,Rekening!A:C,3,FALSE)","v":"0251"},{"$f":"VLOOKUP(G211,Rekening!C:F,3,FALSE)","v":613330},{"$f":"VLOOKUP(G211,Rekening!C:F,4,FALSE)","v":"Reis- en verblijfkosten studenten"}]
["VLIR_IUC_NETWORK","DIDACTIC ALLOWANCE MSC Y2","VLIR_IUC_NETWORKDIDACTIC ALLOWANCE MSC Y2","UI","UI","UI03",{"$f":"VLOOKUP(B212,Rekening!A:C,3,FALSE)","v":"0261"},{"$f":"VLOOKUP(G212,Rekening!C:F,3,FALSE)","v":613330},{"$f":"VLOOKUP(G212,Rekening!C:F,4,FALSE)","v":"Reis- en verblijfkosten studenten"}]
["VLIR_IUC_NETWORK","MAILING ALLOWANCE","VLIR_IUC_NETWORKMAILING ALLOWANCE","UI","UI","UI03",{"$f":"VLOOKUP(B213,Rekening!A:C,3,FALSE)","v":"0061"},{"$f":"VLOOKUP(G213,Rekening!C:F,3,FALSE)","v":613330},{"$f":"VLOOKUP(G213,Rekening!C:F,4,FALSE)","v":"Reis- en verblijfkosten studenten"}]
["VLIR_IUC_NETWORK","TUITION FEE","VLIR_IUC_NETWORKTUITION FEE","UI","UI","UI03",{"$f":"VLOOKUP(B214,Rekening!A:C,3,FALSE)","v":"0071"},{"$f":"VLOOKUP(G214,Rekening!C:F,3,FALSE)","v":613420},{"$f":"VLOOKUP(G214,Rekening!C:F,4,FALSE)","v":"Bursalen"}]
["VLIR_IUC_NETWORK","FAMILY SUPPLEMENT","VLIR_IUC_NETWORKFAMILY SUPPLEMENT","UI","UI","UI03",{"$f":"VLOOKUP(B215,Rekening!A:C,3,FALSE)","v":"0081"},{"$f":"VLOOKUP(G215,Rekening!C:F,3,FALSE)","v":613330},{"$f":"VLOOKUP(G215,Rekening!C:F,4,FALSE)","v":"Reis- en verblijfkosten studenten"}]
["VLIR_IUC_NETWORK","PROGRAM RELATED TRAVEL COSTS","VLIR_IUC_NETWORKPROGRAM RELATED TRAVEL COSTS","UI","UI","UI03",{"$f":"VLOOKUP(B216,Rekening!A:C,3,FALSE)","v":"0091"},{"$f":"VLOOKUP(G216,Rekening!C:F,3,FALSE)","v":613330},{"$f":"VLOOKUP(G216,Rekening!C:F,4,FALSE)","v":"Reis- en verblijfkosten studenten"}]
["VLIR_IUC_NETWORK","AIRLINE TICKET","VLIR_IUC_NETWORKAIRLINE TICKET","UI","UI","UI03",{"$f":"VLOOKUP(B217,Rekening!A:C,3,FALSE)","v":"0101"},{"$f":"VLOOKUP(G217,Rekening!C:F,3,FALSE)","v":613330},{"$f":"VLOOKUP(G217,Rekening!C:F,4,FALSE)","v":"Reis- en verblijfkosten studenten"}]
["VLIR_IUC_NETWORK","PER DIEM","VLIR_IUC_NETWORKPER DIEM","UI","UI","UI03",{"$f":"VLOOKUP(B218,Rekening!A:C,3,FALSE)","v":"0111"},{"$f":"VLOOKUP(G218,Rekening!C:F,3,FALSE)","v":613330},{"$f":"VLOOKUP(G218,Rekening!C:F,4,FALSE)","v":"Reis- en verblijfkosten studenten"}]
["VLIR_IUC_NETWORK","CONFERENCE PARTICIPATION","VLIR_IUC_NETWORKCONFERENCE PARTICIPATION","UI","UI","UI03",{"$f":"VLOOKUP(B219,Rekening!A:C,3,FALSE)","v":"0271"},{"$f":"VLOOKUP(G219,Rekening!C:F,3,FALSE)","v":613330},{"$f":"VLOOKUP(G219,Rekening!C:F,4,FALSE)","v":"Reis- en verblijfkosten studenten"}]
["VLIR_IUC_NETWORK","HOTEL","VLIR_IUC_NETWORKHOTEL","UI","UI","UI03",{"$f":"VLOOKUP(B220,Rekening!A:C,3,FALSE)","v":"0281"},{"$f":"VLOOKUP(G220,Rekening!C:F,3,FALSE)","v":613330},{"$f":"VLOOKUP(G220,Rekening!C:F,4,FALSE)","v":"Reis- en verblijfkosten studenten"}]
["VLIR_IUC_NETWORK","OTHER ","VLIR_IUC_NETWORKOTHER ","UI","UI","UI03",{"$f":"VLOOKUP(B221,Rekening!A:C,3,FALSE)","v":"0291"},{"$f":"VLOOKUP(G221,Rekening!C:F,3,FALSE)","v":613330},{"$f":"VLOOKUP(G221,Rekening!C:F,4,FALSE)","v":"Reis- en verblijfkosten studenten"}]
["VLIR_IUC_NETWORK","LOCAL HOTEL","VLIR_IUC_NETWORKLOCAL HOTEL","UI","UI","UI03",{"$f":"VLOOKUP(B222,Rekening!A:C,3,FALSE)","v":"0331"},{"$f":"VLOOKUP(G222,Rekening!C:F,3,FALSE)","v":613330},{"$f":"VLOOKUP(G222,Rekening!C:F,4,FALSE)","v":"Reis- en verblijfkosten studenten"}]
["VLIR_IUC_NETWORK","LOCAL TRAVEL COSTS","VLIR_IUC_NETWORKLOCAL TRAVEL COSTS","UI","UI","UI03",{"$f":"VLOOKUP(B223,Rekening!A:C,3,FALSE)","v":"0341"},{"$f":"VLOOKUP(G223,Rekening!C:F,3,FALSE)","v":613330},{"$f":"VLOOKUP(G223,Rekening!C:F,4,FALSE)","v":"Reis- en verblijfkosten studenten"}]
["VLIR_NGC","SCHOLARSHIP","VLIR_NGCSCHOLARSHIP","UI","UI","UI03",{"$f":"VLOOKUP(B224,Rekening!A:C,3,FALSE)","v":"0011"},{"$f":"VLOOKUP(G224,Rekening!C:F,3,FALSE)","v":613420},{"$f":"VLOOKUP(G224,Rekening!C:F,4,FALSE)","v":"Bursalen"}]
["VLIR_NGC","ACCOMODATION ALLOWANCE","VLIR_NGCACCOMODATION ALLOWANCE","UI","UI","UI03",{"$f":"VLOOKUP(B225,Rekening!A:C,3,FALSE)","v":"0021"},{"$f":"VLOOKUP(G225,Rekening!C:F,3,FALSE)","v":613330},{"$f":"VLOOKUP(G225,Rekening!C:F,4,FALSE)","v":"Reis- en verblijfkosten studenten"}]
["VLIR_NGC","INDIRECT TRAVEL COSTS","VLIR_NGCINDIRECT TRAVEL COSTS","UI","UI","UI03",{"$f":"VLOOKUP(B226,Rekening!A:C,3,FALSE)","v":"0031"},{"$f":"VLOOKUP(G226,Rekening!C:F,3,FALSE)","v":613330},{"$f":"VLOOKUP(G226,Rekening!C:F,4,FALSE)","v":"Reis- en verblijfkosten studenten"}]
["VLIR_NGC","INSTALLATION ALLOWANCE","VLIR_NGCINSTALLATION ALLOWANCE","UI","UI","UI03",{"$f":"VLOOKUP(B227,Rekening!A:C,3,FALSE)","v":"0041"},{"$f":"VLOOKUP(G227,Rekening!C:F,3,FALSE)","v":613330},{"$f":"VLOOKUP(G227,Rekening!C:F,4,FALSE)","v":"Reis- en verblijfkosten studenten"}]
["VLIR_NGC","DIDACTIC ALLOWANCE","VLIR_NGCDIDACTIC ALLOWANCE","UI","UI","UI03",{"$f":"VLOOKUP(B228,Rekening!A:C,3,FALSE)","v":"0241"},{"$f":"VLOOKUP(G228,Rekening!C:F,3,FALSE)","v":613330},{"$f":"VLOOKUP(G228,Rekening!C:F,4,FALSE)","v":"Reis- en verblijfkosten studenten"}]
["VLIR_NGC","DIDACTIC ALLOWANCE MSC Y1","VLIR_NGCDIDACTIC ALLOWANCE MSC Y1","UI","UI","UI03",{"$f":"VLOOKUP(B229,Rekening!A:C,3,FALSE)","v":"0251"},{"$f":"VLOOKUP(G229,Rekening!C:F,3,FALSE)","v":613330},{"$f":"VLOOKUP(G229,Rekening!C:F,4,FALSE)","v":"Reis- en verblijfkosten studenten"}]
["VLIR_NGC","DIDACTIC ALLOWANCE MSC Y2","VLIR_NGCDIDACTIC ALLOWANCE MSC Y2","UI","UI","UI03",{"$f":"VLOOKUP(B230,Rekening!A:C,3,FALSE)","v":"0261"},{"$f":"VLOOKUP(G230,Rekening!C:F,3,FALSE)","v":613330},{"$f":"VLOOKUP(G230,Rekening!C:F,4,FALSE)","v":"Reis- en verblijfkosten studenten"}]
["VLIR_NGC","MAILING ALLOWANCE","VLIR_NGCMAILING ALLOWANCE","UI","UI","UI03",{"$f":"VLOOKUP(B231,Rekening!A:C,3,FALSE)","v":"0061"},{"$f":"VLOOKUP(G231,Rekening!C:F,3,FALSE)","v":613330},{"$f":"VLOOKUP(G231,Rekening!C:F,4,FALSE)","v":"Reis- en verblijfkosten studenten"}]
["VLIR_NGC","TUITION FEE","VLIR_NGCTUITION FEE","UI","UI","UI03",{"$f":"VLOOKUP(B232,Rekening!A:C,3,FALSE)","v":"0071"},{"$f":"VLOOKUP(G232,Rekening!C:F,3,FALSE)","v":613420},{"$f":"VLOOKUP(G232,Rekening!C:F,4,FALSE)","v":"Bursalen"}]
["VLIR_NGC","FAMILY SUPPLEMENT","VLIR_NGCFAMILY SUPPLEMENT","UI","UI","UI03",{"$f":"VLOOKUP(B233,Rekening!A:C,3,FALSE)","v":"0081"},{"$f":"VLOOKUP(G233,Rekening!C:F,3,FALSE)","v":613330},{"$f":"VLOOKUP(G233,Rekening!C:F,4,FALSE)","v":"Reis- en verblijfkosten studenten"}]
["VLIR_NGC","PROGRAM RELATED TRAVEL COSTS","VLIR_NGCPROGRAM RELATED TRAVEL COSTS","UI","UI","UI03",{"$f":"VLOOKUP(B234,Rekening!A:C,3,FALSE)","v":"0091"},{"$f":"VLOOKUP(G234,Rekening!C:F,3,FALSE)","v":613330},{"$f":"VLOOKUP(G234,Rekening!C:F,4,FALSE)","v":"Reis- en verblijfkosten studenten"}]
["VLIR_NGC","AIRLINE TICKET","VLIR_NGCAIRLINE TICKET","UI","UI","UI03",{"$f":"VLOOKUP(B235,Rekening!A:C,3,FALSE)","v":"0101"},{"$f":"VLOOKUP(G235,Rekening!C:F,3,FALSE)","v":613330},{"$f":"VLOOKUP(G235,Rekening!C:F,4,FALSE)","v":"Reis- en verblijfkosten studenten"}]
["VLIR_NGC","PER DIEM","VLIR_NGCPER DIEM","UI","UI","UI03",{"$f":"VLOOKUP(B236,Rekening!A:C,3,FALSE)","v":"0111"},{"$f":"VLOOKUP(G236,Rekening!C:F,3,FALSE)","v":613330},{"$f":"VLOOKUP(G236,Rekening!C:F,4,FALSE)","v":"Reis- en verblijfkosten studenten"}]
["VLIR_NGC","CONFERENCE PARTICIPATION","VLIR_NGCCONFERENCE PARTICIPATION","UI","UI","UI03",{"$f":"VLOOKUP(B237,Rekening!A:C,3,FALSE)","v":"0271"},{"$f":"VLOOKUP(G237,Rekening!C:F,3,FALSE)","v":613330},{"$f":"VLOOKUP(G237,Rekening!C:F,4,FALSE)","v":"Reis- en verblijfkosten studenten"}]
["VLIR_NGC","HOTEL","VLIR_NGCHOTEL","UI","UI","UI03",{"$f":"VLOOKUP(B238,Rekening!A:C,3,FALSE)","v":"0281"},{"$f":"VLOOKUP(G238,Rekening!C:F,3,FALSE)","v":613330},{"$f":"VLOOKUP(G238,Rekening!C:F,4,FALSE)","v":"Reis- en verblijfkosten studenten"}]
["VLIR_NGC","OTHER ","VLIR_NGCOTHER ","UI","UI","UI03",{"$f":"VLOOKUP(B239,Rekening!A:C,3,FALSE)","v":"0291"},{"$f":"VLOOKUP(G239,Rekening!C:F,3,FALSE)","v":613330},{"$f":"VLOOKUP(G239,Rekening!C:F,4,FALSE)","v":"Reis- en verblijfkosten studenten"}]
["VLIR_NGC","LOCAL HOTEL","VLIR_NGCLOCAL HOTEL","UI","UI","UI03",{"$f":"VLOOKUP(B240,Rekening!A:C,3,FALSE)","v":"0331"},{"$f":"VLOOKUP(G240,Rekening!C:F,3,FALSE)","v":613330},{"$f":"VLOOKUP(G240,Rekening!C:F,4,FALSE)","v":"Reis- en verblijfkosten studenten"}]
["VLIR_NGC","LOCAL TRAVEL COSTS","VLIR_NGCLOCAL TRAVEL COSTS","UI","UI","UI03",{"$f":"VLOOKUP(B241,Rekening!A:C,3,FALSE)","v":"0341"},{"$f":"VLOOKUP(G241,Rekening!C:F,3,FALSE)","v":613330},{"$f":"VLOOKUP(G241,Rekening!C:F,4,FALSE)","v":"Reis- en verblijfkosten studenten"}]
["VLIR_TEAM_ZI_JOINT","SCHOLARSHIP","VLIR_TEAM_ZI_JOINTSCHOLARSHIP","UI","UI","UI03",{"$f":"VLOOKUP(B242,Rekening!A:C,3,FALSE)","v":"0011"},{"$f":"VLOOKUP(G242,Rekening!C:F,3,FALSE)","v":613420},{"$f":"VLOOKUP(G242,Rekening!C:F,4,FALSE)","v":"Bursalen"}]
["VLIR_TEAM_ZI_JOINT","ACCOMODATION ALLOWANCE","VLIR_TEAM_ZI_JOINTACCOMODATION ALLOWANCE","UI","UI","UI03",{"$f":"VLOOKUP(B243,Rekening!A:C,3,FALSE)","v":"0021"},{"$f":"VLOOKUP(G243,Rekening!C:F,3,FALSE)","v":613330},{"$f":"VLOOKUP(G243,Rekening!C:F,4,FALSE)","v":"Reis- en verblijfkosten studenten"}]
["VLIR_TEAM_ZI_JOINT","INDIRECT TRAVEL COSTS","VLIR_TEAM_ZI_JOINTINDIRECT TRAVEL COSTS","UI","UI","UI03",{"$f":"VLOOKUP(B244,Rekening!A:C,3,FALSE)","v":"0031"},{"$f":"VLOOKUP(G244,Rekening!C:F,3,FALSE)","v":613330},{"$f":"VLOOKUP(G244,Rekening!C:F,4,FALSE)","v":"Reis- en verblijfkosten studenten"}]
["VLIR_TEAM_ZI_JOINT","INSTALLATION ALLOWANCE","VLIR_TEAM_ZI_JOINTINSTALLATION ALLOWANCE","UI","UI","UI03",{"$f":"VLOOKUP(B245,Rekening!A:C,3,FALSE)","v":"0041"},{"$f":"VLOOKUP(G245,Rekening!C:F,3,FALSE)","v":613330},{"$f":"VLOOKUP(G245,Rekening!C:F,4,FALSE)","v":"Reis- en verblijfkosten studenten"}]
["VLIR_TEAM_ZI_JOINT","DIDACTIC ALLOWANCE","VLIR_TEAM_ZI_JOINTDIDACTIC ALLOWANCE","UI","UI","UI03",{"$f":"VLOOKUP(B246,Rekening!A:C,3,FALSE)","v":"0241"},{"$f":"VLOOKUP(G246,Rekening!C:F,3,FALSE)","v":613330},{"$f":"VLOOKUP(G246,Rekening!C:F,4,FALSE)","v":"Reis- en verblijfkosten studenten"}]
["VLIR_TEAM_ZI_JOINT","DIDACTIC ALLOWANCE MSC Y1","VLIR_TEAM_ZI_JOINTDIDACTIC ALLOWANCE MSC Y1","UI","UI","UI03",{"$f":"VLOOKUP(B247,Rekening!A:C,3,FALSE)","v":"0251"},{"$f":"VLOOKUP(G247,Rekening!C:F,3,FALSE)","v":613330},{"$f":"VLOOKUP(G247,Rekening!C:F,4,FALSE)","v":"Reis- en verblijfkosten studenten"}]
["VLIR_TEAM_ZI_JOINT","DIDACTIC ALLOWANCE MSC Y2","VLIR_TEAM_ZI_JOINTDIDACTIC ALLOWANCE MSC Y2","UI","UI","UI03",{"$f":"VLOOKUP(B248,Rekening!A:C,3,FALSE)","v":"0261"},{"$f":"VLOOKUP(G248,Rekening!C:F,3,FALSE)","v":613330},{"$f":"VLOOKUP(G248,Rekening!C:F,4,FALSE)","v":"Reis- en verblijfkosten studenten"}]
["VLIR_TEAM_ZI_JOINT","MAILING ALLOWANCE","VLIR_TEAM_ZI_JOINTMAILING ALLOWANCE","UI","UI","UI03",{"$f":"VLOOKUP(B249,Rekening!A:C,3,FALSE)","v":"0061"},{"$f":"VLOOKUP(G249,Rekening!C:F,3,FALSE)","v":613330},{"$f":"VLOOKUP(G249,Rekening!C:F,4,FALSE)","v":"Reis- en verblijfkosten studenten"}]
["VLIR_TEAM_ZI_JOINT","TUITION FEE","VLIR_TEAM_ZI_JOINTTUITION FEE","UI","UI","UI03",{"$f":"VLOOKUP(B250,Rekening!A:C,3,FALSE)","v":"0071"},{"$f":"VLOOKUP(G250,Rekening!C:F,3,FALSE)","v":613420},{"$f":"VLOOKUP(G250,Rekening!C:F,4,FALSE)","v":"Bursalen"}]
["VLIR_TEAM_ZI_JOINT","FAMILY SUPPLEMENT","VLIR_TEAM_ZI_JOINTFAMILY SUPPLEMENT","UI","UI","UI03",{"$f":"VLOOKUP(B251,Rekening!A:C,3,FALSE)","v":"0081"},{"$f":"VLOOKUP(G251,Rekening!C:F,3,FALSE)","v":613330},{"$f":"VLOOKUP(G251,Rekening!C:F,4,FALSE)","v":"Reis- en verblijfkosten studenten"}]
["VLIR_TEAM_ZI_JOINT","PROGRAM RELATED TRAVEL COSTS","VLIR_TEAM_ZI_JOINTPROGRAM RELATED TRAVEL COSTS","UI","UI","UI03",{"$f":"VLOOKUP(B252,Rekening!A:C,3,FALSE)","v":"0091"},{"$f":"VLOOKUP(G252,Rekening!C:F,3,FALSE)","v":613330},{"$f":"VLOOKUP(G252,Rekening!C:F,4,FALSE)","v":"Reis- en verblijfkosten studenten"}]
["VLIR_TEAM_ZI_JOINT","AIRLINE TICKET","VLIR_TEAM_ZI_JOINTAIRLINE TICKET","UI","UI","UI03",{"$f":"VLOOKUP(B253,Rekening!A:C,3,FALSE)","v":"0101"},{"$f":"VLOOKUP(G253,Rekening!C:F,3,FALSE)","v":613330},{"$f":"VLOOKUP(G253,Rekening!C:F,4,FALSE)","v":"Reis- en verblijfkosten studenten"}]
["VLIR_TEAM_ZI_JOINT","PER DIEM","VLIR_TEAM_ZI_JOINTPER DIEM","UI","UI","UI03",{"$f":"VLOOKUP(B254,Rekening!A:C,3,FALSE)","v":"0111"},{"$f":"VLOOKUP(G254,Rekening!C:F,3,FALSE)","v":613330},{"$f":"VLOOKUP(G254,Rekening!C:F,4,FALSE)","v":"Reis- en verblijfkosten studenten"}]
["VLIR_TEAM_ZI_JOINT","CONFERENCE PARTICIPATION","VLIR_TEAM_ZI_JOINTCONFERENCE PARTICIPATION","UI","UI","UI03",{"$f":"VLOOKUP(B255,Rekening!A:C,3,FALSE)","v":"0271"},{"$f":"VLOOKUP(G255,Rekening!C:F,3,FALSE)","v":613330},{"$f":"VLOOKUP(G255,Rekening!C:F,4,FALSE)","v":"Reis- en verblijfkosten studenten"}]
["VLIR_TEAM_ZI_JOINT","HOTEL","VLIR_TEAM_ZI_JOINTHOTEL","UI","UI","UI03",{"$f":"VLOOKUP(B256,Rekening!A:C,3,FALSE)","v":"0281"},{"$f":"VLOOKUP(G256,Rekening!C:F,3,FALSE)","v":613330},{"$f":"VLOOKUP(G256,Rekening!C:F,4,FALSE)","v":"Reis- en verblijfkosten studenten"}]
["VLIR_TEAM_ZI_JOINT","OTHER ","VLIR_TEAM_ZI_JOINTOTHER ","UI","UI","UI03",{"$f":"VLOOKUP(B257,Rekening!A:C,3,FALSE)","v":"0291"},{"$f":"VLOOKUP(G257,Rekening!C:F,3,FALSE)","v":613330},{"$f":"VLOOKUP(G257,Rekening!C:F,4,FALSE)","v":"Reis- en verblijfkosten studenten"}]
["VLIR_TEAM_ZI_JOINT","LOCAL HOTEL",{"$f":"A258&B258","v":"VLIR_TEAM_ZI_JOINTLOCAL HOTEL"},"UI","UI","UI03",{"$f":"VLOOKUP(B258,Rekening!A:C,3,FALSE)","v":"0331"},{"$f":"VLOOKUP(G258,Rekening!C:F,3,FALSE)","v":613330},{"$f":"VLOOKUP(G258,Rekening!C:F,4,FALSE)","v":"Reis- en verblijfkosten studenten"}]
["VLIR_TEAM_ZI_JOINT","LOCAL TRAVEL COSTS","VLIR_TEAM_ZI_JOINTLOCAL TRAVEL COSTS","UI","UI","UI03",{"$f":"VLOOKUP(B259,Rekening!A:C,3,FALSE)","v":"0341"},{"$f":"VLOOKUP(G259,Rekening!C:F,3,FALSE)","v":613330},{"$f":"VLOOKUP(G259,Rekening!C:F,4,FALSE)","v":"Reis- en verblijfkosten studenten"}]

{"sheet":"Geschrapt","index":2,"n_rows":59,"n_cols":13,"rows_kept":59,"cut":false,"hidden":true,"merged":[]}
["Reden beurzen","Partner","Naam","Betaal\njaar","Betaal\nmaand","Intake","Omschrijving","Budget\nplaats","Bedrag","Valuta","Verval\nDatum","Bankrekening","Extra Omschrijving"]
["ICP_1Y","ACCOMODATION ALLOWANCE","ICP_1YACCOMODATION ALLOWANCE","UI","UI","UI01","0021",613330,"Reis- en verblijfkosten studenten"]
["ICP_1Y","AIRLINE TICKET","ICP_1YAIRLINE TICKET","UI","UI","UI01","0101",613330,"Reis- en verblijfkosten studenten"]
["ICP_1Y","DIDACTIC ALLOWANCE Y1","ICP_1YDIDACTIC ALLOWANCE Y1","UI","UI","UI01","0051",613330,"Reis- en verblijfkosten studenten"]
["ICP_1Y","DIDACTIC ALLOWANCE Y2","ICP_1YDIDACTIC ALLOWANCE Y2","UI","UI","UI01","0051",613330,"Reis- en verblijfkosten studenten"]
["ICP_1Y","FAMILY SUPPLEMENT","ICP_1YFAMILY SUPPLEMENT","UI","UI","UI01","0081",613330,"Reis- en verblijfkosten studenten"]
["ICP_1Y","INDIRECT TRAVEL COSTS","ICP_1YINDIRECT TRAVEL COSTS","UI","UI","UI01","0031",613330,"Reis- en verblijfkosten studenten"]
["ICP_1Y","INSTALLATION ALLOWANCE","ICP_1YINSTALLATION ALLOWANCE","UI","UI","UI01","0041",613330,"Reis- en verblijfkosten studenten"]
["ICP_1Y","MAILING ALLOWANCE","ICP_1YMAILING ALLOWANCE","UI","UI","UI01","0061",613330,"Reis- en verblijfkosten studenten"]
["ICP_1Y","OTHER","ICP_1YOTHER","UI","UI","UI01","0121",613330,"Reis- en verblijfkosten studenten"]
["ICP_1Y","PER DIEM","ICP_1YPER DIEM","UI","UI","UI01","0111",613330,"Reis- en verblijfkosten studenten"]
["ICP_1Y","PROGRAM RELATED TRAVEL COSTS","ICP_1YPROGRAM RELATED TRAVEL COSTS","UI","UI","UI01","0091",613330,"Reis- en verblijfkosten studenten"]
["ICP_1Y","SCHOLARSHIP","ICP_1YSCHOLARSHIP","UI","UI","UI01","0011",613420,"Bursalen"]
["ICP_1Y","TUITION FEE","ICP_1YTUITION FEE","UI","UI","UI01","0071",613420,"Bursalen"]
["ICP_2Y","ACCOMODATION ALLOWANCE","ICP_2YACCOMODATION ALLOWANCE","UI","UI","UI01","0021",613330,"Reis- en verblijfkosten studenten"]
["ICP_2Y","AIRLINE TICKET","ICP_2YAIRLINE TICKET","UI","UI","UI01","0101",613330,"Reis- en verblijfkosten studenten"]
["ICP_2Y","DIDACTIC ALLOWANCE Y1","ICP_2YDIDACTIC ALLOWANCE Y1","UI","UI","UI01","0051",613330,"Reis- en verblijfkosten studenten"]
["ICP_2Y","DIDACTIC ALLOWANCE Y2","ICP_2YDIDACTIC ALLOWANCE Y2","UI","UI","UI01","0051",613330,"Reis- en verblijfkosten studenten"]
["ICP_2Y","FAMILY SUPPLEMENT","ICP_2YFAMILY SUPPLEMENT","UI","UI","UI01","0081",613330,"Reis- en verblijfkosten studenten"]
["ICP_2Y","INDIRECT TRAVEL COSTS","ICP_2YINDIRECT TRAVEL COSTS","UI","UI","UI01","0031",613330,"Reis- en verblijfkosten studenten"]
["ICP_2Y","INSTALLATION ALLOWANCE","ICP_2YINSTALLATION ALLOWANCE","UI","UI","UI01","0041",613330,"Reis- en verblijfkosten studenten"]
["ICP_2Y","MAILING ALLOWANCE","ICP_2YMAILING ALLOWANCE","UI","UI","UI01","0061",613330,"Reis- en verblijfkosten studenten"]
["ICP_2Y","OTHER","ICP_2YOTHER","UI","UI","UI01","0121",613330,"Reis- en verblijfkosten studenten"]
["ICP_2Y","PER DIEM","ICP_2YPER DIEM","UI","UI","UI01","0111",613330,"Reis- en verblijfkosten studenten"]
["ICP_2Y","PROGRAM RELATED TRAVEL COSTS","ICP_2YPROGRAM RELATED TRAVEL COSTS","UI","UI","UI01","0091",613330,"Reis- en verblijfkosten studenten"]
["ICP_2Y","SCHOLARSHIP","ICP_2YSCHOLARSHIP","UI","UI","UI01","0011",613420,"Bursalen"]
["ICP_2Y","TUITION FEE","ICP_2YTUITION FEE","UI","UI","UI01","0071",613420,"Bursalen"]
["ICP_3Y","ACCOMODATION ALLOWANCE","ICP_3YACCOMODATION ALLOWANCE","UI","UI","UI01","0021",613330,"Reis- en verblijfkosten studenten"]
["ICP_3Y","AIRLINE TICKET","ICP_3YAIRLINE TICKET","UI","UI","UI01","0101",613330,"Reis- en verblijfkosten studenten"]
["ICP_3Y","DIDACTIC ALLOWANCE Y1","ICP_3YDIDACTIC ALLOWANCE Y1","UI","UI","UI01","0051",613330,"Reis- en verblijfkosten studenten"]
["ICP_3Y","DIDACTIC ALLOWANCE Y2","ICP_3YDIDACTIC ALLOWANCE Y2","UI","UI","UI01","0051",613330,"Reis- en verblijfkosten studenten"]
["ICP_3Y","FAMILY SUPPLEMENT","ICP_3YFAMILY SUPPLEMENT","UI","UI","UI01","0081",613330,"Reis- en verblijfkosten studenten"]
["ICP_3Y","INDIRECT TRAVEL COSTS","ICP_3YINDIRECT TRAVEL COSTS","UI","UI","UI01","0031",613330,"Reis- en verblijfkosten studenten"]
["ICP_3Y","INSTALLATION ALLOWANCE","ICP_3YINSTALLATION ALLOWANCE","UI","UI","UI01","0041",613330,"Reis- en verblijfkosten studenten"]
["ICP_3Y","MAILING ALLOWANCE","ICP_3YMAILING ALLOWANCE","UI","UI","UI01","0061",613330,"Reis- en verblijfkosten studenten"]
["ICP_3Y","OTHER","ICP_3YOTHER","UI","UI","UI01","0121",613330,"Reis- en verblijfkosten studenten"]
["ICP_3Y","PER DIEM","ICP_3YPER DIEM","UI","UI","UI01","0111",613330,"Reis- en verblijfkosten studenten"]
["ICP_3Y","PROGRAM RELATED TRAVEL COSTS","ICP_3YPROGRAM RELATED TRAVEL COSTS","UI","UI","UI01","0091",613330,"Reis- en verblijfkosten studenten"]
["ICP_3Y","SCHOLARSHIP","ICP_3YSCHOLARSHIP","UI","UI","UI01","0011",613420,"Bursalen"]
["ICP_3Y","TUITION FEE","ICP_3YTUITION FEE","UI","UI","UI01","0071",613420,"Bursalen"]
[]
["VLIR_COF","INSTALLATION ALLOWANCE","VLIR_COFINSTALLATION ALLOWANCE","UI","UI","UI03","0041",613330,"Reis- en verblijfkosten studenten"]
["VLIR_COF","SCHOLARSHIP","VLIR_COFSCHOLARSHIP","UI","UI","UI03","0011",613420,"Bursalen"]
["VLIR_COF","TRAVEL GRANT","VLIR_COFTRAVEL GRANT","UI","UI","UI03","0171",613330,"Reis- en verblijfkosten studenten"]
["VLIR_EI","INSTALLATION ALLOWANCE","VLIR_EIINSTALLATION ALLOWANCE","UI","UI","UI03","0041",613330,"Reis- en verblijfkosten studenten"]
["VLIR_EI","SCHOLARSHIP","VLIR_EISCHOLARSHIP","UI","UI","UI03","0011",613420,"Bursalen"]
["VLIR_EI","TRAVEL GRANT","VLIR_EITRAVEL GRANT","UI","UI","UI03","0171",613330,"Reis- en verblijfkosten studenten"]
["VLIR_GLOBAL","INSTALLATION ALLOWANCE","VLIR_GLOBALINSTALLATION ALLOWANCE","UI","UI","UI03","0041",613330,"Reis- en verblijfkosten studenten"]
["VLIR_GLOBAL","SCHOLARSHIP","VLIR_GLOBALSCHOLARSHIP","UI","UI","UI03","0011",613420,"Bursalen"]
["VLIR_GLOBAL","TRAVEL GRANT","VLIR_GLOBALTRAVEL GRANT","UI","UI","UI03","0171",613330,"Reis- en verblijfkosten studenten"]
["VLIR_HEC","INSTALLATION ALLOWANCE","VLIR_HECINSTALLATION ALLOWANCE","UI","UI","UI03","0041",613330,"Reis- en verblijfkosten studenten"]
["VLIR_HEC","SCHOLARSHIP","VLIR_HECSCHOLARSHIP","UI","UI","UI03","0011",613420,"Bursalen"]
["VLIR_HEC","TRAVEL GRANT","VLIR_HECTRAVEL GRANT","UI","UI","UI03","0171",613330,"Reis- en verblijfkosten studenten"]
["VLIR_IUS","INSTALLATION ALLOWANCE","VLIR_IUSINSTALLATION ALLOWANCE","UI","UI","UI03","0041",613330,"Reis- en verblijfkosten studenten"]
["VLIR_IUS","SCHOLARSHIP","VLIR_IUSSCHOLARSHIP","UI","UI","UI03","0011",613420,"Bursalen"]
["VLIR_IUS","TRAVEL GRANT","VLIR_IUSTRAVEL GRANT","UI","UI","UI03","0171",613330,"Reis- en verblijfkosten studenten"]
["VLIR_TEAM","INSTALLATION ALLOWANCE","VLIR_TEAMINSTALLATION ALLOWANCE","UI","UI","UI03","0041",613330,"Reis- en verblijfkosten studenten"]
["VLIR_TEAM","SCHOLARSHIP","VLIR_TEAMSCHOLARSHIP","UI","UI","UI03","0011",613420,"Bursalen"]
["VLIR_TEAM","TRAVEL GRANT","VLIR_TEAMTRAVEL GRANT","UI","UI","UI03","0171",613330,"Reis- en verblijfkosten studenten"]

{"sheet":"Pivot_Codes","index":3,"n_rows":57,"n_cols":5,"rows_kept":57,"cut":false,"hidden":true,"merged":[]}
[]
[]
["Hoofd\nOperatie","Deel\nOperatie","Mapping","Rekening","Rekening\nOmschrijving"]
["UI01","0011","SCHOLARSHIP",613420,"Bursalen"]
[null,"0021","ACCOMODATION ALLOWANCE",613330,"Reis- en verblijfkosten studenten"]
[null,"0031","INDIRECT TRAVEL COSTS",613330,"Reis- en verblijfkosten studenten"]
[null,"0041","INSTALLATION ALLOWANCE",613330,"Reis- en verblijfkosten studenten"]
[null,"0051","DIDACTIC ALLOWANCE Y1",613330,"Reis- en verblijfkosten studenten"]
[null,null,"DIDACTIC ALLOWANCE Y2",613330,"Reis- en verblijfkosten studenten"]
[null,"0061","MAILING ALLOWANCE",613330,"Reis- en verblijfkosten studenten"]
[null,"0071","TUITION FEE",613420,"Bursalen"]
[null,"0081","FAMILY SUPPLEMENT",613330,"Reis- en verblijfkosten studenten"]
[null,"0091","PROGRAM RELATED TRAVEL COSTS",613330,"Reis- en verblijfkosten studenten"]
[null,"0101","AIRLINE TICKET",613330,"Reis- en verblijfkosten studenten"]
[null,"0111","PER DIEM",613330,"Reis- en verblijfkosten studenten"]
[null,"0121","OTHER",613330,"Reis- en verblijfkosten studenten"]
["UI02","0011","SCHOLARSHIP",613420,"Bursalen"]
[null,"0121","OTHER",613330,"Reis- en verblijfkosten studenten"]
[null,"0131","TRAVEL GRANT 1/4",613330,"Reis- en verblijfkosten studenten"]
[null,"0141","TRAVEL GRANT 2/4",613330,"Reis- en verblijfkosten studenten"]
[null,"0151","TRAVEL GRANT 3/4",613330,"Reis- en verblijfkosten studenten"]
[null,"0161","TRAVEL GRANT 4/4",613330,"Reis- en verblijfkosten studenten"]
["UI03","0011","SCHOLARSHIP",613420,"Bursalen"]
[null,"0021","ACCOMODATION ALLOWANCE",613330,"Reis- en verblijfkosten studenten"]
[null,"0031","INDIRECT TRAVEL COSTS",613330,"Reis- en verblijfkosten studenten"]
[null,"0041","INSTALLATION ALLOWANCE",613330,"Reis- en verblijfkosten studenten"]
[null,"0051","DIDACTIC ALLOWANCE Y1",613330,"Reis- en verblijfkosten studenten"]
[null,null,"DIDACTIC ALLOWANCE Y2",613330,"Reis- en verblijfkosten studenten"]
[null,"0061","MAILING ALLOWANCE",613330,"Reis- en verblijfkosten studenten"]
[null,"0071","TUITION FEE",613420,"Bursalen"]
[null,"0081","FAMILY ALLOWANCE",613330,"Reis- en verblijfkosten studenten"]
[null,null,"FAMILY SUPPLEMENT",613330,"Reis- en verblijfkosten studenten"]
[null,"0091","PROGRAM RELATED TRAVEL COSTS",613330,"Reis- en verblijfkosten studenten"]
[null,"0101","AIRLINE TICKET",613330,"Reis- en verblijfkosten studenten"]
[null,"0111","PER DIEM",613330,"Reis- en verblijfkosten studenten"]
[null,"0121","OTHER",613330,"Reis- en verblijfkosten studenten"]
[null,"0171","TRAVEL GRANT",613330,"Reis- en verblijfkosten studenten"]
[null,"0181","SCHOLARSHIP Y1",613420,"Bursalen"]
[null,"0191","SCHOLARSHIP Y2",613420,"Bursalen"]
[null,"0201","INSTALLATION FEE Y1",613330,"Reis- en verblijfkosten studenten"]
[null,"0211","INSTALLATION FEE Y2",613330,"Reis- en verblijfkosten studenten"]
[null,"0221","MOBILITY ALLOWANCE",613330,"Reis- en verblijfkosten studenten"]
[null,"0231","MATCHING MOBILITY ALLOWANCE",613330,"Reis- en verblijfkosten studenten"]
[null,"0241","DIDACTIC ALLOWANCE",613330,"Reis- en verblijfkosten studenten"]
[null,"0251","DIDACTIC ALLOWANCE MSC Y1",613330,"Reis- en verblijfkosten studenten"]
[null,"0261","DIDACTIC ALLOWANCE MSC Y2",613330,"Reis- en verblijfkosten studenten"]
[null,"0271","CONFERENCE PARTICIPATION",613330,"Reis- en verblijfkosten studenten"]
[null,"0281","HOTEL",613330,"Reis- en verblijfkosten studenten"]
[null,"0291","OTHER ",613330,"Reis- en verblijfkosten studenten"]
[null,"0301","BOF ACCOMMODATION ",613330,"Reis- en verblijfkosten studenten"]
[null,"0311","BOF REIMBURSEMENT INSURANCE",613330,"Reis- en verblijfkosten studenten"]
[null,"0321","BOF TOP UP ",613330,"Reis- en verblijfkosten studenten"]
[null,"0331","LOCAL HOTEL",613330,"Reis- en verblijfkosten studenten"]
[null,"0341","LOCAL TRAVEL COSTS",613330,"Reis- en verblijfkosten studenten"]
["UI04","0001","DIV_EXPERIMENTEN",613603,"Vergoeding Pijn en Smart"]
["(blank)","(blank)","(blank)","(blank)","(blank)"]
["Grand Total"]

{"sheet":"Voorbeeld","index":4,"n_rows":28,"n_cols":18,"rows_kept":28,"cut":false,"hidden":false,"merged":[[15,0,15,1]]}
[]
[]
["Zie kolom => ","A","B","C","D","E","F","G","H","I","J","K","L","M",null,"N","O","P"]
[]
[]
[null,"Reden beurzen","Partner","Naam","Betaal\njaar","Betaal\nmaand","Intake","Omschrijving","Budget\nplaats","Bedrag","Valuta","Verval\nDatum","Bankrekening","Extra Omschrijving","Verantwoordelijke"]
[1,"DI-INTERS","ST01107457","Naam",2016,"Februari",2017,"SCHOLARSHIP","B0905702",null,"EUR",{"$f":"VLOOKUP(F7,Jaren!E:I,5,FALSE)&E7","v":"20/01/2016"},null,null,{"$f":"Gebruikersnaam","v":"BVELKENE"},{"$f":"IF(ISBLANK(B7)=FALSE,IF(AND(NOT(ISERROR(IF(OR(ISBLANK(B7)=FALSE,ISBLANK(H7)=FALSE),VLOOKUP(B7&H7,Codes!C:C,1,FALSE),\"\"))),IF(LEFT(B7,3)=\"ICP\",LEFT(B7,3)=LEFT(N7,3),TRUE))=TRUE,\"Bestaande combinatie\",\"Foutieve combinatie\"),\"\")","v":"Bestaande combinatie"},"in deze kolom mag je vrij commentaar plaatsen"]
[2,"DI-INTERS","ST01107457","Naam",2016,"Februari",2017,null,"B0905702",null,"EUR",{"$f":"VLOOKUP(F8,Jaren!E:I,5,FALSE)&E8","v":"20/01/2016"}," BE16737032730974",null,{"$f":"O7","v":"BVELKENE"},{"$f":"IF(ISBLANK(B8)=FALSE,IF(AND(NOT(ISERROR(IF(OR(ISBLANK(B8)=FALSE,ISBLANK(H8)=FALSE),VLOOKUP(B8&H8,Codes!C:C,1,FALSE),\"\"))),IF(LEFT(B8,3)=\"ICP\",LEFT(B8,3)=LEFT(N8,3),TRUE))=TRUE,\"Bestaande combinatie\",\"Foutieve combinatie\"),\"\")","v":"Foutieve combinatie"},"in deze kolom mag je vrij commentaar plaatsen"]
[3,"ICP_1Y","ST01107457","Naam",2016,"Februari",2017,"MAILING ALLOWANCE","B/14873/01",null,"EUR",{"$f":"VLOOKUP(F9,Jaren!E:I,5,FALSE)&E9","v":"20/01/2016"},null,"ICP Environmental Sanitation (ICP Ensa)",{"$f":"O8","v":"BVELKENE"},{"$f":"IF(ISBLANK(B9)=FALSE,IF(AND(NOT(ISERROR(IF(OR(ISBLANK(B9)=FALSE,ISBLANK(H9)=FALSE),VLOOKUP(B9&H9,Codes!C:C,1,FALSE),\"\"))),IF(LEFT(B9,3)=\"ICP\",LEFT(B9,3)=LEFT(N9,3),TRUE))=TRUE,\"Bestaande combinatie\",\"Foutieve combinatie\"),\"\")","v":"Foutieve combinatie"},"in deze kolom mag je vrij commentaar plaatsen"]
[4,"ICP_1Y","ST01107457","Naam",2016,"Februari",2017,"MAILING ALLOWANCE","B/14873/01",null,"EUR",{"$f":"VLOOKUP(F10,Jaren!E:I,5,FALSE)&E10","v":"20/01/2016"},null,null,{"$f":"O9","v":"BVELKENE"},{"$f":"IF(ISBLANK(B10)=FALSE,IF(AND(NOT(ISERROR(IF(OR(ISBLANK(B10)=FALSE,ISBLANK(H10)=FALSE),VLOOKUP(B10&H10,Codes!C:C,1,FALSE),\"\"))),IF(LEFT(B10,3)=\"ICP\",LEFT(B10,3)=LEFT(N10,3),TRUE))=TRUE,\"Bestaande combinatie\",\"Foutieve combinatie\"),\"\")","v":"Foutieve combinatie"},"in deze kolom mag je vrij commentaar plaatsen"]
[5,null,null,null,null,null,null,null,null,null,"EUR",{"$f":"VLOOKUP(F11,Jaren!E:I,5,FALSE)&E11","v":{"$error":"#N/A"}},null,null,{"$f":"O10","v":"BVELKENE"},{"$f":"IF(ISBLANK(B11)=FALSE,IF(AND(NOT(ISERROR(IF(OR(ISBLANK(B11)=FALSE,ISBLANK(H11)=FALSE),VLOOKUP(B11&H11,Codes!C:C,1,FALSE),\"\"))),IF(LEFT(B11,3)=\"ICP\",LEFT(B11,3)=LEFT(N11,3),TRUE))=TRUE,\"Bestaande combinatie\",\"Foutieve combinatie\"),\"\")","v":""},"in deze kolom mag je vrij commentaar plaatsen"]
[6,null,null,null,null,null,null,null,null,null,"EUR",{"$f":"VLOOKUP(F12,Jaren!E:I,5,FALSE)&E12","v":{"$error":"#N/A"}},null,null,null,{"$f":"IF(ISBLANK(B12)=FALSE,IF(AND(NOT(ISERROR(IF(OR(ISBLANK(B12)=FALSE,ISBLANK(H12)=FALSE),VLOOKUP(B12&H12,Codes!C:C,1,FALSE),\"\"))),IF(LEFT(B12,3)=\"ICP\",LEFT(B12,3)=LEFT(N12,3),TRUE))=TRUE,\"Bestaande combinatie\",\"Foutieve combinatie\"),\"\")","v":""},"in deze kolom mag je vrij commentaar plaatsen"]
[null,null,null,null,null,null,null,null,"v"]
[null,null,null,null,null,null,null,null,"v",null,null,null,null,null,null,"v"]
[null,null,null,null,null,null,null,null,"v",null,null,null,null,null,null,"v"]
["Verklaring",null,null,null,null,null,null,null,"v",null,null,null,null,null,null,"v"]
[null,null,null,null,null,null,null,null,"v",null,null,null,null,null,null,"v"]
[1,"Kolom B en H correct ingevuld",null,null,null,null,null,null,"v",null,null,null,null,null,null,"v"]
[null,null,null,null,null,null,null,null,"Punten of / mogen inbegrepen zijn",null,null,null,null,null,null,"v"]
[2,"Kolom H ontbreekt",null,null,null,null,null,null,"Echter niet nodig",null,null,null,null,null,null,"Indien groen gekleurd dan bestaande combinatie"]
[null,null,null,null,null,null,null,null,null,null,null,null,null,null,null,"Indien rood gekleurd dan foutieve combinatie"]
[3,"Kolom B en H en N correct ingevuld (kolom N wordt enkel voor ICP gecontroleerd)",null,null,null,null,null,null,null,null,null,null,null,null,null,"Indien grijs gekleurd dan nog niets ingevuld"]
[]
[4,"Kolom N ontbreekt voor ICP (kolom N wordt enkel voor ICP gecontroleerd)"]
[]
[5,"Blanc lijn, nog niets ingevuld"]
[]
[6,"Deze lijn mag niet  overschreden worden met een insert of delete"]

{"sheet":"Bestand","index":5,"n_rows":8,"n_cols":2,"rows_kept":8,"cut":false,"hidden":false,"merged":[]}
[]
[]
[]
["Path (plaats op je schijf)","C:\\Data\\Upload"]
[]
["Bestandsnaam","Mijn test"]
[]
["Gebruikersnaam","BVELKENE"]

{"sheet":"Rekening","index":6,"n_rows":62,"n_cols":13,"rows_kept":62,"cut":false,"hidden":true,"merged":[]}
["DIV_EXPERIMENTEN",1,{"$f":"VLOOKUP(LEN(B1),L:M,2,FALSE)&B1","v":"0001"},null,613601,"Vergoedingen aan particulieren"]
["SCHOLARSHIP",11,"0011","0011",613420,"Bursalen",null,null,null,null,null,1,"000"]
["ACCOMODATION ALLOWANCE",21,"0021","0021",613330,"Reis- en verblijfkosten studenten",null,null,null,null,null,2,"00"]
["INDIRECT TRAVEL COSTS",31,"0031","0031",613330,"Reis- en verblijfkosten studenten",null,null,null,null,null,3,"0"]
["INSTALLATION ALLOWANCE",41,"0041","0041",613330,"Reis- en verblijfkosten studenten"]
["DIDACTIC ALLOWANCE Y1",51,"0051","0051",613330,"Reis- en verblijfkosten studenten"]
["DIDACTIC ALLOWANCE Y2",51,"0051",null,613330,"Reis- en verblijfkosten studenten"]
["MAILING ALLOWANCE",61,"0061","0061",613330,"Reis- en verblijfkosten studenten"]
["TUITION FEE",71,"0071","0071",613420,"Bursalen"]
["FAMILY SUPPLEMENT",81,"0081","0081",613330,"Reis- en verblijfkosten studenten"]
["PROGRAM RELATED TRAVEL COSTS",91,"0091","0091",613330,"Reis- en verblijfkosten studenten"]
["AIRLINE TICKET",101,"0101","0101",613330,"Reis- en verblijfkosten studenten"]
["PER DIEM",111,"0111","0111",613330,"Reis- en verblijfkosten studenten"]
["OTHER",121,"0121","0121",613330,"Reis- en verblijfkosten studenten"]
["TRAVEL GRANT 1/4",131,"0131","0131",613330,"Reis- en verblijfkosten studenten"]
["TRAVEL GRANT 2/4",141,"0141","0141",613330,"Reis- en verblijfkosten studenten"]
["TRAVEL GRANT 3/4",151,"0151","0151",613330,"Reis- en verblijfkosten studenten"]
["TRAVEL GRANT 4/4",161,"0161","0161",613330,"Reis- en verblijfkosten studenten"]
["TRAVEL GRANT",{"$f":"B18+10","v":171},"0171",null,613330,"Reis- en verblijfkosten studenten"]
["SCHOLARSHIP Y1",{"$f":"B19+10","v":181},"0181",null,613420,"Bursalen"]
["SCHOLARSHIP Y2",191,"0191",null,613420,"Bursalen"]
["INSTALLATION FEE Y1",201,"0201",null,613330,"Reis- en verblijfkosten studenten"]
["INSTALLATION FEE Y2",211,"0211",null,613330,"Reis- en verblijfkosten studenten"]
["MOBILITY ALLOWANCE",221,"0221",null,613330,"Reis- en verblijfkosten studenten"]
["MATCHING MOBILITY ALLOWANCE",231,"0231",null,613330,"Reis- en verblijfkosten studenten"]
["DIDACTIC ALLOWANCE",241,"0241",null,613330,"Reis- en verblijfkosten studenten"]
["DIDACTIC ALLOWANCE MSC Y1",251,"0251",null,613330,"Reis- en verblijfkosten studenten"]
["DIDACTIC ALLOWANCE MSC Y2",261,"0261",null,613330,"Reis- en verblijfkosten studenten"]
["CONFERENCE PARTICIPATION",271,"0271",null,613330,"Reis- en verblijfkosten studenten"]
["HOTEL",281,"0281",null,613330,"Reis- en verblijfkosten studenten"]
["OTHER ",291,"0291",null,613330,"Reis- en verblijfkosten studenten"]
["BOF ACCOMMODATION ",301,"0301",null,613330,"Reis- en verblijfkosten studenten"]
["BOF REIMBURSEMENT INSURANCE",311,"0311",null,613330,"Reis- en verblijfkosten studenten"]
["BOF TOP UP ",321,"0321",null,613330,"Reis- en verblijfkosten studenten"]
["LOCAL HOTEL",331,{"$f":"VLOOKUP(LEN(B35),L:M,2,FALSE)&B35","v":"0331"},null,613330,"Reis- en verblijfkosten studenten"]
["LOCAL TRAVEL COSTS",341,"0341",null,613330,"Reis- en verblijfkosten studenten"]
[null,351,"0351"]
[null,361,"0361"]
[null,371,"0371"]
[null,381,"0381"]
[null,391,"0391"]
[null,401,"0401"]
[null,411,"0411"]
[null,421,"0421"]
[null,431,{"$f":"VLOOKUP(LEN(B45),L:M,2,FALSE)&B45","v":"0431"}]
[null,441,"0441"]
[null,451,"0451"]
[null,461,"0461"]
[null,471,"0471"]
[null,481,"0481"]
[null,491,"0491"]
[null,501,"0501"]
[null,511,"0511"]
[null,521,"0521"]
[null,531,"0531"]
[null,541,"0541"]
[null,551,"0551"]
[null,561,"0561"]
[null,571,"0571"]
[null,581,"0581"]
[null,591,"0591"]
[null,601,"0601"]

{"sheet":"Jaren","index":7,"n_rows":23,"n_cols":9,"rows_kept":23,"cut":false,"hidden":true,"merged":[]}
["Maanden",null,"Jaren",null,"Maand","Vervaldatum","Dag","Maand","Vervaldag"]
["Januari",null,2013,null,"Januari","December","01","01",{"$f":"G2&\"/\"&H2&\"/\"","v":"01/01/"}]
["Februari",null,2014,null,"Februari","Januari",20,"01","20/01/"]
["Maart",null,2015,null,"Maart","Februari",20,"02","20/02/"]
["April",null,2016,null,"April","Maart",20,"03","20/03/"]
["Mei",null,{"$f":"C5+1","v":2017},null,"Mei","April",20,"04","20/04/"]
["Juni",null,{"$f":"C6+1","v":2018},null,"Juni","Mei",20,"05","20/05/"]
["Juli",null,2019,null,"Juli","Juni",20,"06","20/06/"]
["Augustus",null,2020,null,"Augustus","Juli",20,"07","20/07/"]
["September",null,2021,null,"September","Augustus",20,"08","20/08/"]
["Oktober",null,2022,null,"Oktober","September",20,"09","20/09/"]
["November",null,2023,null,"November","Oktober",20,"10","20/10/"]
["December",null,2024,null,"December","November",20,"11","20/11/"]
[null,null,2025]
[null,null,2026]
[null,null,2027]
[null,null,2028]
[null,null,2029]
[null,null,2030]
[null,null,2031]
[null,null,2032]
[null,null,2033]
[null,null,2034]

{"sheet":"CodesClean","index":8,"n_rows":172,"n_cols":4,"rows_kept":172,"cut":false,"hidden":true,"merged":[]}
["Reden","Mapping","Reden2","Mapping2"]
["DI-INTERS","SCHOLARSHIP",{"$f":"IF(A2<>A3,A2,\"\")","v":"DI-INTERS"},{"$f":"IF(A2=A1,D1&\";\"&B2,B2)","v":"SCHOLARSHIP"}]
["DI-RESIDENTS","SCHOLARSHIP",{"$f":"IF(A3<>A4,A3,\"\")","v":"DI-RESIDENTS"},{"$f":"IF(A3=A2,D2&\";\"&B3,B3)","v":"SCHOLARSHIP"}]
["EKAFREE1_1Y","SCHOLARSHIP","EKAFREE1_1Y","SCHOLARSHIP"]
["EKAFREE1_2Y","SCHOLARSHIP","EKAFREE1_2Y","SCHOLARSHIP"]
["EKAFREE_1Y","INSTALLATION ALLOWANCE","","INSTALLATION ALLOWANCE"]
["EKAFREE_1Y","SCHOLARSHIP","","INSTALLATION ALLOWANCE;SCHOLARSHIP"]
["EKAFREE_1Y","TRAVEL GRANT","EKAFREE_1Y","INSTALLATION ALLOWANCE;SCHOLARSHIP;TRAVEL GRANT"]
["EKAFREE_2Y","INSTALLATION ALLOWANCE","","INSTALLATION ALLOWANCE"]
["EKAFREE_2Y","SCHOLARSHIP","","INSTALLATION ALLOWANCE;SCHOLARSHIP"]
["EKAFREE_2Y","TRAVEL GRANT","EKAFREE_2Y","INSTALLATION ALLOWANCE;SCHOLARSHIP;TRAVEL GRANT"]
["EMA2","SCHOLARSHIP","EMA2","SCHOLARSHIP"]
["EMBELG","ACCOMODATION ALLOWANCE","","ACCOMODATION ALLOWANCE"]
["EMBELG","INSTALLATION ALLOWANCE","","ACCOMODATION ALLOWANCE;INSTALLATION ALLOWANCE"]
["EMBELG","SCHOLARSHIP","","ACCOMODATION ALLOWANCE;INSTALLATION ALLOWANCE;SCHOLARSHIP"]
["EMBELG","TRAVEL GRANT","EMBELG","ACCOMODATION ALLOWANCE;INSTALLATION ALLOWANCE;SCHOLARSHIP;TRAVEL GRANT"]
["EMBILAKKOORD","ACCOMODATION ALLOWANCE","","ACCOMODATION ALLOWANCE"]
["EMBILAKKOORD","INSTALLATION ALLOWANCE","","ACCOMODATION ALLOWANCE;INSTALLATION ALLOWANCE"]
["EMBILAKKOORD","SCHOLARSHIP","","ACCOMODATION ALLOWANCE;INSTALLATION ALLOWANCE;SCHOLARSHIP"]
["EMBILAKKOORD","TRAVEL GRANT","EMBILAKKOORD","ACCOMODATION ALLOWANCE;INSTALLATION ALLOWANCE;SCHOLARSHIP;TRAVEL GRANT"]
["EMCMOUTEU","ACCOMODATION ALLOWANCE","","ACCOMODATION ALLOWANCE"]
["EMCMOUTEU","INSTALLATION ALLOWANCE","","ACCOMODATION ALLOWANCE;INSTALLATION ALLOWANCE"]
["EMCMOUTEU","SCHOLARSHIP","","ACCOMODATION ALLOWANCE;INSTALLATION ALLOWANCE;SCHOLARSHIP"]
["EMCMOUTEU","TRAVEL GRANT","EMCMOUTEU","ACCOMODATION ALLOWANCE;INSTALLATION ALLOWANCE;SCHOLARSHIP;TRAVEL GRANT"]
["EMGENBEURS","ACCOMODATION ALLOWANCE","","ACCOMODATION ALLOWANCE"]
["EMGENBEURS","INSTALLATION ALLOWANCE","","ACCOMODATION ALLOWANCE;INSTALLATION ALLOWANCE"]
["EMGENBEURS","SCHOLARSHIP","","ACCOMODATION ALLOWANCE;INSTALLATION ALLOWANCE;SCHOLARSHIP"]
["EMGENBEURS","TRAVEL GRANT","EMGENBEURS","ACCOMODATION ALLOWANCE;INSTALLATION ALLOWANCE;SCHOLARSHIP;TRAVEL GRANT"]
["EMJM1","ACCOMODATION ALLOWANCE","","ACCOMODATION ALLOWANCE"]
["EMJM1","INSTALLATION ALLOWANCE","","ACCOMODATION ALLOWANCE;INSTALLATION ALLOWANCE"]
["EMJM1","SCHOLARSHIP","","ACCOMODATION ALLOWANCE;INSTALLATION ALLOWANCE;SCHOLARSHIP"]
["EMJM1","TRAVEL GRANT","EMJM1","ACCOMODATION ALLOWANCE;INSTALLATION ALLOWANCE;SCHOLARSHIP;TRAVEL GRANT"]
["EMSTUD","ACCOMODATION ALLOWANCE","","ACCOMODATION ALLOWANCE"]
["EMSTUD","INSTALLATION ALLOWANCE","","ACCOMODATION ALLOWANCE;INSTALLATION ALLOWANCE"]
["EMSTUD","SCHOLARSHIP","","ACCOMODATION ALLOWANCE;INSTALLATION ALLOWANCE;SCHOLARSHIP"]
["EMSTUD","TRAVEL GRANT","EMSTUD","ACCOMODATION ALLOWANCE;INSTALLATION ALLOWANCE;SCHOLARSHIP;TRAVEL GRANT"]
["EMTRAIN","ACCOMODATION ALLOWANCE","","ACCOMODATION ALLOWANCE"]
["EMTRAIN","INSTALLATION ALLOWANCE","","ACCOMODATION ALLOWANCE;INSTALLATION ALLOWANCE"]
["EMTRAIN","SCHOLARSHIP","","ACCOMODATION ALLOWANCE;INSTALLATION ALLOWANCE;SCHOLARSHIP"]
["EMTRAIN","TRAVEL GRANT","EMTRAIN","ACCOMODATION ALLOWANCE;INSTALLATION ALLOWANCE;SCHOLARSHIP;TRAVEL GRANT"]
["EXPERIMENTEN","DIV_EXPERIMENTEN","EXPERIMENTEN","DIV_EXPERIMENTEN"]
["FUSION-EP","INSTALLATION FEE Y1","","INSTALLATION FEE Y1"]
["FUSION-EP","INSTALLATION FEE Y2","","INSTALLATION FEE Y1;INSTALLATION FEE Y2"]
["FUSION-EP","SCHOLARSHIP Y1","","INSTALLATION FEE Y1;INSTALLATION FEE Y2;SCHOLARSHIP Y1"]
["FUSION-EP","SCHOLARSHIP Y2","FUSION-EP","INSTALLATION FEE Y1;INSTALLATION FEE Y2;SCHOLARSHIP Y1;SCHOLARSHIP Y2"]
["ICP_1Y","ACCOMODATION ALLOWANCE","","ACCOMODATION ALLOWANCE"]
["ICP_1Y","AIRLINE TICKET","","ACCOMODATION ALLOWANCE;AIRLINE TICKET"]
["ICP_1Y","DIDACTIC ALLOWANCE Y1","","ACCOMODATION ALLOWANCE;AIRLINE TICKET;DIDACTIC ALLOWANCE Y1"]
["ICP_1Y","DIDACTIC ALLOWANCE Y2","","ACCOMODATION ALLOWANCE;AIRLINE TICKET;DIDACTIC ALLOWANCE Y1;DIDACTIC ALLOWANCE Y2"]
["ICP_1Y","FAMILY SUPPLEMENT","","ACCOMODATION ALLOWANCE;AIRLINE TICKET;DIDACTIC ALLOWANCE Y1;DIDACTIC ALLOWANCE Y2;FAMILY SUPPLEMENT"]
["ICP_1Y","INDIRECT TRAVEL COSTS","","ACCOMODATION ALLOWANCE;AIRLINE TICKET;DIDACTIC ALLOWANCE Y1;DIDACTIC ALLOWANCE Y2;FAMILY SUPPLEMENT;INDIRECT TRAVEL COSTS"]
["ICP_1Y","INSTALLATION ALLOWANCE","","ACCOMODATION ALLOWANCE;AIRLINE TICKET;DIDACTIC ALLOWANCE Y1;DIDACTIC ALLOWANCE Y2;FAMILY SUPPLEMENT;INDIRECT TRAVEL COSTS;INSTALLATION ALLOWANCE"]
["ICP_1Y","MAILING ALLOWANCE","","ACCOMODATION ALLOWANCE;AIRLINE TICKET;DIDACTIC ALLOWANCE Y1;DIDACTIC ALLOWANCE Y2;FAMILY SUPPLEMENT;INDIRECT TRAVEL COSTS;INSTALLATION ALLOWANCE;MAILING ALLOWANCE"]
["ICP_1Y","OTHER","","ACCOMODATION ALLOWANCE;AIRLINE TICKET;DIDACTIC ALLOWANCE Y1;DIDACTIC ALLOWANCE Y2;FAMILY SUPPLEMENT;INDIRECT TRAVEL COSTS;INSTALLATION ALLOWANCE;MAILING ALLOWANCE;OTHER"]
["ICP_1Y","PER DIEM","","ACCOMODATION ALLOWANCE;AIRLINE TICKET;DIDACTIC ALLOWANCE Y1;DIDACTIC ALLOWANCE Y2;FAMILY SUPPLEMENT;INDIRECT TRAVEL COSTS;INSTALLATION ALLOWANCE;MAILING ALLOWANCE;OTHER;PER DIEM"]
["ICP_1Y","PROGRAM RELATED TRAVEL COSTS","","ACCOMODATION ALLOWANCE;AIRLINE TICKET;DIDACTIC ALLOWANCE Y1;DIDACTIC ALLOWANCE Y2;FAMILY SUPPLEMENT;INDIRECT TRAVEL COSTS;INSTALLATION ALLOWANCE;MAILING ALLOWANCE;OTHER;PER DIEM;PROGRAM RELATED TRAVEL COSTS"]
["ICP_1Y","SCHOLARSHIP","","ACCOMODATION ALLOWANCE;AIRLINE TICKET;DIDACTIC ALLOWANCE Y1;DIDACTIC ALLOWANCE Y2;FAMILY SUPPLEMENT;INDIRECT TRAVEL COSTS;INSTALLATION ALLOWANCE;MAILING ALLOWANCE;OTHER;PER DIEM;PROGRAM RELATED TRAVEL COSTS;SCHOLARSHIP"]
["ICP_1Y","TUITION FEE","ICP_1Y","ACCOMODATION ALLOWANCE;AIRLINE TICKET;DIDACTIC ALLOWANCE Y1;DIDACTIC ALLOWANCE Y2;FAMILY SUPPLEMENT;INDIRECT TRAVEL COSTS;INSTALLATION ALLOWANCE;MAILING ALLOWANCE;OTHER;PER DIEM;PROGRAM RELATED TRAVEL COSTS;SCHOLARSHIP;TUITION FEE"]
["ICP_2Y","ACCOMODATION ALLOWANCE","","ACCOMODATION ALLOWANCE"]
["ICP_2Y","AIRLINE TICKET","","ACCOMODATION ALLOWANCE;AIRLINE TICKET"]
["ICP_2Y","DIDACTIC ALLOWANCE Y1","","ACCOMODATION ALLOWANCE;AIRLINE TICKET;DIDACTIC ALLOWANCE Y1"]
["ICP_2Y","DIDACTIC ALLOWANCE Y2","","ACCOMODATION ALLOWANCE;AIRLINE TICKET;DIDACTIC ALLOWANCE Y1;DIDACTIC ALLOWANCE Y2"]
["ICP_2Y","FAMILY SUPPLEMENT","","ACCOMODATION ALLOWANCE;AIRLINE TICKET;DIDACTIC ALLOWANCE Y1;DIDACTIC ALLOWANCE Y2;FAMILY SUPPLEMENT"]
["ICP_2Y","INDIRECT TRAVEL COSTS","","ACCOMODATION ALLOWANCE;AIRLINE TICKET;DIDACTIC ALLOWANCE Y1;DIDACTIC ALLOWANCE Y2;FAMILY SUPPLEMENT;INDIRECT TRAVEL COSTS"]
["ICP_2Y","INSTALLATION ALLOWANCE","","ACCOMODATION ALLOWANCE;AIRLINE TICKET;DIDACTIC ALLOWANCE Y1;DIDACTIC ALLOWANCE Y2;FAMILY SUPPLEMENT;INDIRECT TRAVEL COSTS;INSTALLATION ALLOWANCE"]
["ICP_2Y","MAILING ALLOWANCE","","ACCOMODATION ALLOWANCE;AIRLINE TICKET;DIDACTIC ALLOWANCE Y1;DIDACTIC ALLOWANCE Y2;FAMILY SUPPLEMENT;INDIRECT TRAVEL COSTS;INSTALLATION ALLOWANCE;MAILING ALLOWANCE"]
["ICP_2Y","OTHER",{"$f":"IF(A67<>A68,A67,\"\")","v":""},{"$f":"IF(A67=A66,D66&\";\"&B67,B67)","v":"ACCOMODATION ALLOWANCE;AIRLINE TICKET;DIDACTIC ALLOWANCE Y1;DIDACTIC ALLOWANCE Y2;FAMILY SUPPLEMENT;INDIRECT TRAVEL COSTS;INSTALLATION ALLOWANCE;MAILING ALLOWANCE;OTHER"}]
["ICP_2Y","PER DIEM","","ACCOMODATION ALLOWANCE;AIRLINE TICKET;DIDACTIC ALLOWANCE Y1;DIDACTIC ALLOWANCE Y2;FAMILY SUPPLEMENT;INDIRECT TRAVEL COSTS;INSTALLATION ALLOWANCE;MAILING ALLOWANCE;OTHER;PER DIEM"]
["ICP_2Y","PROGRAM RELATED TRAVEL COSTS","","ACCOMODATION ALLOWANCE;AIRLINE TICKET;DIDACTIC ALLOWANCE Y1;DIDACTIC ALLOWANCE Y2;FAMILY SUPPLEMENT;INDIRECT TRAVEL COSTS;INSTALLATION ALLOWANCE;MAILING ALLOWANCE;OTHER;PER DIEM;PROGRAM RELATED TRAVEL COSTS"]
["ICP_2Y","SCHOLARSHIP","","ACCOMODATION ALLOWANCE;AIRLINE TICKET;DIDACTIC ALLOWANCE Y1;DIDACTIC ALLOWANCE Y2;FAMILY SUPPLEMENT;INDIRECT TRAVEL COSTS;INSTALLATION ALLOWANCE;MAILING ALLOWANCE;OTHER;PER DIEM;PROGRAM RELATED TRAVEL COSTS;SCHOLARSHIP"]
["ICP_2Y","TUITION FEE","ICP_2Y","ACCOMODATION ALLOWANCE;AIRLINE TICKET;DIDACTIC ALLOWANCE Y1;DIDACTIC ALLOWANCE Y2;FAMILY SUPPLEMENT;INDIRECT TRAVEL COSTS;INSTALLATION ALLOWANCE;MAILING ALLOWANCE;OTHER;PER DIEM;PROGRAM RELATED TRAVEL COSTS;SCHOLARSHIP;TUITION FEE"]
["ICP_3Y","ACCOMODATION ALLOWANCE","","ACCOMODATION ALLOWANCE"]
["ICP_3Y","AIRLINE TICKET","","ACCOMODATION ALLOWANCE;AIRLINE TICKET"]
["ICP_3Y","DIDACTIC ALLOWANCE Y1","","ACCOMODATION ALLOWANCE;AIRLINE TICKET;DIDACTIC ALLOWANCE Y1"]
["ICP_3Y","DIDACTIC ALLOWANCE Y2","","ACCOMODATION ALLOWANCE;AIRLINE TICKET;DIDACTIC ALLOWANCE Y1;DIDACTIC ALLOWANCE Y2"]
["ICP_3Y","FAMILY SUPPLEMENT","","ACCOMODATION ALLOWANCE;AIRLINE TICKET;DIDACTIC ALLOWANCE Y1;DIDACTIC ALLOWANCE Y2;FAMILY SUPPLEMENT"]
["ICP_3Y","INDIRECT TRAVEL COSTS","","ACCOMODATION ALLOWANCE;AIRLINE TICKET;DIDACTIC ALLOWANCE Y1;DIDACTIC ALLOWANCE Y2;FAMILY SUPPLEMENT;INDIRECT TRAVEL COSTS"]
["ICP_3Y","INSTALLATION ALLOWANCE","","ACCOMODATION ALLOWANCE;AIRLINE TICKET;DIDACTIC ALLOWANCE Y1;DIDACTIC ALLOWANCE Y2;FAMILY SUPPLEMENT;INDIRECT TRAVEL COSTS;INSTALLATION ALLOWANCE"]
["ICP_3Y","MAILING ALLOWANCE","","ACCOMODATION ALLOWANCE;AIRLINE TICKET;DIDACTIC ALLOWANCE Y1;DIDACTIC ALLOWANCE Y2;FAMILY SUPPLEMENT;INDIRECT TRAVEL COSTS;INSTALLATION ALLOWANCE;MAILING ALLOWANCE"]
["ICP_3Y","OTHER","","ACCOMODATION ALLOWANCE;AIRLINE TICKET;DIDACTIC ALLOWANCE Y1;DIDACTIC ALLOWANCE Y2;FAMILY SUPPLEMENT;INDIRECT TRAVEL COSTS;INSTALLATION ALLOWANCE;MAILING ALLOWANCE;OTHER"]
["ICP_3Y","PER DIEM","","ACCOMODATION ALLOWANCE;AIRLINE TICKET;DIDACTIC ALLOWANCE Y1;DIDACTIC ALLOWANCE Y2;FAMILY SUPPLEMENT;INDIRECT TRAVEL COSTS;INSTALLATION ALLOWANCE;MAILING ALLOWANCE;OTHER;PER DIEM"]
["ICP_3Y","PROGRAM RELATED TRAVEL COSTS","","ACCOMODATION ALLOWANCE;AIRLINE TICKET;DIDACTIC ALLOWANCE Y1;DIDACTIC ALLOWANCE Y2;FAMILY SUPPLEMENT;INDIRECT TRAVEL COSTS;INSTALLATION ALLOWANCE;MAILING ALLOWANCE;OTHER;PER DIEM;PROGRAM RELATED TRAVEL COSTS"]
["ICP_3Y","SCHOLARSHIP","","ACCOMODATION ALLOWANCE;AIRLINE TICKET;DIDACTIC ALLOWANCE Y1;DIDACTIC ALLOWANCE Y2;FAMILY SUPPLEMENT;INDIRECT TRAVEL COSTS;INSTALLATION ALLOWANCE;MAILING ALLOWANCE;OTHER;PER DIEM;PROGRAM RELATED TRAVEL COSTS;SCHOLARSHIP"]
["ICP_3Y","TUITION FEE","ICP_3Y","ACCOMODATION ALLOWANCE;AIRLINE TICKET;DIDACTIC ALLOWANCE Y1;DIDACTIC ALLOWANCE Y2;FAMILY SUPPLEMENT;INDIRECT TRAVEL COSTS;INSTALLATION ALLOWANCE;MAILING ALLOWANCE;OTHER;PER DIEM;PROGRAM RELATED TRAVEL COSTS;SCHOLARSHIP;TUITION FEE"]
["IMBRSEA_1Y","INSTALLATION ALLOWANCE","","INSTALLATION ALLOWANCE"]
["IMBRSEA_1Y","SCHOLARSHIP","","INSTALLATION ALLOWANCE;SCHOLARSHIP"]
["IMBRSEA_1Y","TRAVEL GRANT","IMBRSEA_1Y","INSTALLATION ALLOWANCE;SCHOLARSHIP;TRAVEL GRANT"]
["IMBRSEA_2Y","INSTALLATION ALLOWANCE","","INSTALLATION ALLOWANCE"]
["IMBRSEA_2Y","SCHOLARSHIP","","INSTALLATION ALLOWANCE;SCHOLARSHIP"]
["IMBRSEA_2Y","TRAVEL GRANT","IMBRSEA_2Y","INSTALLATION ALLOWANCE;SCHOLARSHIP;TRAVEL GRANT"]
["IMBRSEA_SCH","SCHOLARSHIP","IMBRSEA_SCH","SCHOLARSHIP"]
["IMETE_1Y","INSTALLATION ALLOWANCE","","INSTALLATION ALLOWANCE"]
["IMETE_1Y","SCHOLARSHIP","","INSTALLATION ALLOWANCE;SCHOLARSHIP"]
["IMETE_1Y","TRAVEL GRANT","IMETE_1Y","INSTALLATION ALLOWANCE;SCHOLARSHIP;TRAVEL GRANT"]
["IMETE_2Y","INSTALLATION ALLOWANCE","","INSTALLATION ALLOWANCE"]
["IMETE_2Y","SCHOLARSHIP","","INSTALLATION ALLOWANCE;SCHOLARSHIP"]
["IMETE_2Y","TRAVEL GRANT","IMETE_2Y","INSTALLATION ALLOWANCE;SCHOLARSHIP;TRAVEL GRANT"]
["IMFSE_Y1","INSTALLATION ALLOWANCE","","INSTALLATION ALLOWANCE"]
["IMFSE_Y1","SCHOLARSHIP","","INSTALLATION ALLOWANCE;SCHOLARSHIP"]
["IMFSE_Y1","TRAVEL GRANT","IMFSE_Y1","INSTALLATION ALLOWANCE;SCHOLARSHIP;TRAVEL GRANT"]
["IMFSE_Y2","INSTALLATION ALLOWANCE","","INSTALLATION ALLOWANCE"]
["IMFSE_Y2","SCHOLARSHIP","","INSTALLATION ALLOWANCE;SCHOLARSHIP"]
["IMFSE_Y2","TRAVEL GRANT","IMFSE_Y2","INSTALLATION ALLOWANCE;SCHOLARSHIP;TRAVEL GRANT"]
["IMRD_1Y","INSTALLATION ALLOWANCE","","INSTALLATION ALLOWANCE"]
["IMRD_1Y","SCHOLARSHIP","","INSTALLATION ALLOWANCE;SCHOLARSHIP"]
["IMRD_1Y","TRAVEL GRANT","IMRD_1Y","INSTALLATION ALLOWANCE;SCHOLARSHIP;TRAVEL GRANT"]
["IMRD_2Y","INSTALLATION ALLOWANCE","","INSTALLATION ALLOWANCE"]
["IMRD_2Y","SCHOLARSHIP","","INSTALLATION ALLOWANCE;SCHOLARSHIP"]
["IMRD_2Y","TRAVEL GRANT","IMRD_2Y","INSTALLATION ALLOWANCE;SCHOLARSHIP;TRAVEL GRANT"]
["MARIE CURIE","FAMILY ALLOWANCE","","FAMILY ALLOWANCE"]
["MARIE CURIE","MATCHING MOBILITY ALLOWANCE","","FAMILY ALLOWANCE;MATCHING MOBILITY ALLOWANCE"]
["MARIE CURIE","MOBILITY ALLOWANCE","MARIE CURIE","FAMILY ALLOWANCE;MATCHING MOBILITY ALLOWANCE;MOBILITY ALLOWANCE"]
["SINREM_1Y","INSTALLATION ALLOWANCE","","INSTALLATION ALLOWANCE"]
["SINREM_1Y","SCHOLARSHIP","","INSTALLATION ALLOWANCE;SCHOLARSHIP"]
["SINREM_1Y","TRAVEL GRANT","SINREM_1Y","INSTALLATION ALLOWANCE;SCHOLARSHIP;TRAVEL GRANT"]
["SINREM_2Y","INSTALLATION ALLOWANCE","","INSTALLATION ALLOWANCE"]
["SINREM_2Y","SCHOLARSHIP","","INSTALLATION ALLOWANCE;SCHOLARSHIP"]
["SINREM_2Y","TRAVEL GRANT","SINREM_2Y","INSTALLATION ALLOWANCE;SCHOLARSHIP;TRAVEL GRANT"]
["TUG_1Y","OTHER","","OTHER"]
["TUG_1Y","SCHOLARSHIP","","OTHER;SCHOLARSHIP"]
["TUG_1Y","TRAVEL GRANT 1/4","","OTHER;SCHOLARSHIP;TRAVEL GRANT 1/4"]
["TUG_1Y","TRAVEL GRANT 2/4","","OTHER;SCHOLARSHIP;TRAVEL GRANT 1/4;TRAVEL GRANT 2/4"]
["TUG_1Y","TRAVEL GRANT 3/4","","OTHER;SCHOLARSHIP;TRAVEL GRANT 1/4;TRAVEL GRANT 2/4;TRAVEL GRANT 3/4"]
["TUG_1Y","TRAVEL GRANT 4/4","TUG_1Y","OTHER;SCHOLARSHIP;TRAVEL GRANT 1/4;TRAVEL GRANT 2/4;TRAVEL GRANT 3/4;TRAVEL GRANT 4/4"]
["TUG_2Y","OTHER","","OTHER"]
["TUG_2Y","SCHOLARSHIP","","OTHER;SCHOLARSHIP"]
["TUG_2Y","TRAVEL GRANT 1/4","","OTHER;SCHOLARSHIP;TRAVEL GRANT 1/4"]
["TUG_2Y","TRAVEL GRANT 2/4","","OTHER;SCHOLARSHIP;TRAVEL GRANT 1/4;TRAVEL GRANT 2/4"]
["TUG_2Y","TRAVEL GRANT 3/4","","OTHER;SCHOLARSHIP;TRAVEL GRANT 1/4;TRAVEL GRANT 2/4;TRAVEL GRANT 3/4"]
["TUG_2Y","TRAVEL GRANT 4/4","TUG_2Y","OTHER;SCHOLARSHIP;TRAVEL GRANT 1/4;TRAVEL GRANT 2/4;TRAVEL GRANT 3/4;TRAVEL GRANT 4/4"]
["TUG_GEOORMERKTE_1Y","OTHER",{"$f":"IF(A131<>A132,A131,\"\")","v":""},{"$f":"IF(A131=A130,D130&\";\"&B131,B131)","v":"OTHER"}]
["TUG_GEOORMERKTE_1Y","SCHOLARSHIP","","OTHER;SCHOLARSHIP"]
["TUG_GEOORMERKTE_1Y","TRAVEL GRANT 1/4","","OTHER;SCHOLARSHIP;TRAVEL GRANT 1/4"]
["TUG_GEOORMERKTE_1Y","TRAVEL GRANT 2/4","","OTHER;SCHOLARSHIP;TRAVEL GRANT 1/4;TRAVEL GRANT 2/4"]
["TUG_GEOORMERKTE_1Y","TRAVEL GRANT 3/4","","OTHER;SCHOLARSHIP;TRAVEL GRANT 1/4;TRAVEL GRANT 2/4;TRAVEL GRANT 3/4"]
["TUG_GEOORMERKTE_1Y","TRAVEL GRANT 4/4","TUG_GEOORMERKTE_1Y","OTHER;SCHOLARSHIP;TRAVEL GRANT 1/4;TRAVEL GRANT 2/4;TRAVEL GRANT 3/4;TRAVEL GRANT 4/4"]
["TUG_GEOORMERKTE_2Y","OTHER","","OTHER"]
["TUG_GEOORMERKTE_2Y","SCHOLARSHIP","","OTHER;SCHOLARSHIP"]
["TUG_GEOORMERKTE_2Y","TRAVEL GRANT 1/4","","OTHER;SCHOLARSHIP;TRAVEL GRANT 1/4"]
["TUG_GEOORMERKTE_2Y","TRAVEL GRANT 2/4","","OTHER;SCHOLARSHIP;TRAVEL GRANT 1/4;TRAVEL GRANT 2/4"]
["TUG_GEOORMERKTE_2Y","TRAVEL GRANT 3/4","","OTHER;SCHOLARSHIP;TRAVEL GRANT 1/4;TRAVEL GRANT 2/4;TRAVEL GRANT 3/4"]
["TUG_GEOORMERKTE_2Y","TRAVEL GRANT 4/4","TUG_GEOORMERKTE_2Y","OTHER;SCHOLARSHIP;TRAVEL GRANT 1/4;TRAVEL GRANT 2/4;TRAVEL GRANT 3/4;TRAVEL GRANT 4/4"]
["TUG_GEOORMERKTE_3Y","OTHER","","OTHER"]
["TUG_GEOORMERKTE_3Y","SCHOLARSHIP","","OTHER;SCHOLARSHIP"]
["TUG_GEOORMERKTE_3Y","TRAVEL GRANT 1/4","","OTHER;SCHOLARSHIP;TRAVEL GRANT 1/4"]
["TUG_GEOORMERKTE_3Y","TRAVEL GRANT 2/4","","OTHER;SCHOLARSHIP;TRAVEL GRANT 1/4;TRAVEL GRANT 2/4"]
["TUG_GEOORMERKTE_3Y","TRAVEL GRANT 3/4","","OTHER;SCHOLARSHIP;TRAVEL GRANT 1/4;TRAVEL GRANT 2/4;TRAVEL GRANT 3/4"]
["TUG_GEOORMERKTE_3Y","TRAVEL GRANT 4/4","TUG_GEOORMERKTE_3Y","OTHER;SCHOLARSHIP;TRAVEL GRANT 1/4;TRAVEL GRANT 2/4;TRAVEL GRANT 3/4;TRAVEL GRANT 4/4"]
["TUG_OTHER","OTHER","","OTHER"]
["TUG_OTHER","SCHOLARSHIP","","OTHER;SCHOLARSHIP"]
["TUG_OTHER","TRAVEL GRANT 1/4","","OTHER;SCHOLARSHIP;TRAVEL GRANT 1/4"]
["TUG_OTHER","TRAVEL GRANT 2/4","","OTHER;SCHOLARSHIP;TRAVEL GRANT 1/4;TRAVEL GRANT 2/4"]
["TUG_OTHER","TRAVEL GRANT 3/4","","OTHER;SCHOLARSHIP;TRAVEL GRANT 1/4;TRAVEL GRANT 2/4;TRAVEL GRANT 3/4"]
["TUG_OTHER","TRAVEL GRANT 4/4","TUG_OTHER","OTHER;SCHOLARSHIP;TRAVEL GRANT 1/4;TRAVEL GRANT 2/4;TRAVEL GRANT 3/4;TRAVEL GRANT 4/4"]
["VLIR-COF","INSTALLATION ALLOWANCE","","INSTALLATION ALLOWANCE"]
["VLIR-COF","SCHOLARSHIP","","INSTALLATION ALLOWANCE;SCHOLARSHIP"]
["VLIR-COF","TRAVEL GRANT","VLIR-COF","INSTALLATION ALLOWANCE;SCHOLARSHIP;TRAVEL GRANT"]
["VLIR-EI","INSTALLATION ALLOWANCE","","INSTALLATION ALLOWANCE"]
["VLIR-EI","SCHOLARSHIP","","INSTALLATION ALLOWANCE;SCHOLARSHIP"]
["VLIR-EI","TRAVEL GRANT","VLIR-EI","INSTALLATION ALLOWANCE;SCHOLARSHIP;TRAVEL GRANT"]
["VLIR-GLOBAL","INSTALLATION ALLOWANCE","","INSTALLATION ALLOWANCE"]
["VLIR-GLOBAL","SCHOLARSHIP","","INSTALLATION ALLOWANCE;SCHOLARSHIP"]
["VLIR-GLOBAL","TRAVEL GRANT","VLIR-GLOBAL","INSTALLATION ALLOWANCE;SCHOLARSHIP;TRAVEL GRANT"]
["VLIR-HEC","INSTALLATION ALLOWANCE","","INSTALLATION ALLOWANCE"]
["VLIR-HEC","SCHOLARSHIP","","INSTALLATION ALLOWANCE;SCHOLARSHIP"]
["VLIR-HEC","TRAVEL GRANT","VLIR-HEC","INSTALLATION ALLOWANCE;SCHOLARSHIP;TRAVEL GRANT"]
["VLIR-IUS","INSTALLATION ALLOWANCE","","INSTALLATION ALLOWANCE"]
["VLIR-IUS","SCHOLARSHIP","","INSTALLATION ALLOWANCE;SCHOLARSHIP"]
["VLIR-IUS","TRAVEL GRANT","VLIR-IUS","INSTALLATION ALLOWANCE;SCHOLARSHIP;TRAVEL GRANT"]
["VLIR-TEAM","INSTALLATION ALLOWANCE","","INSTALLATION ALLOWANCE"]
["VLIR-TEAM","SCHOLARSHIP","","INSTALLATION ALLOWANCE;SCHOLARSHIP"]
["VLIR-TEAM","TRAVEL GRANT","VLIR-TEAM","INSTALLATION ALLOWANCE;SCHOLARSHIP;TRAVEL GRANT"]

{"sheet":"ToegestaneCombinaties","index":9,"n_rows":46,"n_cols":19,"rows_kept":46,"cut":false,"hidden":true,"merged":[]}
["Reden","Lookup","Lookup","Lookup","Lookup","Lookup","Lookup","Lookup","Lookup","Lookup","Lookup","Lookup","Lookup","Lookup","Lookup","Lookup","Lookup"]
["BIJZ_AKKOORD","ACCOMODATION ALLOWANCE","AIRLINE TICKET","CONFERENCE PARTICIPATION","FAMILY SUPPLEMENT","HOTEL","OTHER ","PROGRAM RELATED TRAVEL COSTS","SCHOLARSHIP","TUITION FEE"]
["BOF_COFINANCIERING_CSC","BOF ACCOMMODATION ","BOF REIMBURSEMENT INSURANCE","BOF TOP UP "]
["BOF_GEZAMENLIJK_DOCTORAAT_FJD","BOF ACCOMMODATION ","BOF REIMBURSEMENT INSURANCE","BOF TOP UP "]
["DI_INTERS","SCHOLARSHIP"]
["DI_RESIDENTS","SCHOLARSHIP"]
["EKAFREE_1Y","INSTALLATION ALLOWANCE","SCHOLARSHIP","TRAVEL GRANT"]
["EKAFREE_2Y","INSTALLATION ALLOWANCE","SCHOLARSHIP","TRAVEL GRANT"]
["EKAFREE1_1Y","SCHOLARSHIP"]
["EKAFREE1_2Y","SCHOLARSHIP"]
["EMA_2","SCHOLARSHIP"]
["EMBELG","ACCOMODATION ALLOWANCE","INSTALLATION ALLOWANCE","SCHOLARSHIP","TRAVEL GRANT"]
["EMBILAKKOORD","ACCOMODATION ALLOWANCE","INSTALLATION ALLOWANCE","SCHOLARSHIP","TRAVEL GRANT"]
["EMCMOUTEU","ACCOMODATION ALLOWANCE","INSTALLATION ALLOWANCE","SCHOLARSHIP","TRAVEL GRANT"]
["EMGENBEURS","ACCOMODATION ALLOWANCE","INSTALLATION ALLOWANCE","SCHOLARSHIP","TRAVEL GRANT"]
["EMJM1","ACCOMODATION ALLOWANCE","INSTALLATION ALLOWANCE","SCHOLARSHIP","TRAVEL GRANT"]
["EMSTUD","ACCOMODATION ALLOWANCE","INSTALLATION ALLOWANCE","SCHOLARSHIP","TRAVEL GRANT"]
["EMTRAIN","ACCOMODATION ALLOWANCE","INSTALLATION ALLOWANCE","SCHOLARSHIP","TRAVEL GRANT"]
["EXPERIMENTEN","DIV_EXPERIMENTEN"]
["FUSION_EP","INSTALLATION FEE Y1","INSTALLATION FEE Y2","SCHOLARSHIP Y1","SCHOLARSHIP Y2"]
["IMBRSEA_1Y","INSTALLATION ALLOWANCE","SCHOLARSHIP","TRAVEL GRANT"]
["IMBRSEA_2Y","INSTALLATION ALLOWANCE","SCHOLARSHIP","TRAVEL GRANT"]
["IMBRSEA_SCH","SCHOLARSHIP"]
["IMETE_1Y","INSTALLATION ALLOWANCE","SCHOLARSHIP","TRAVEL GRANT"]
["IMETE_2Y","INSTALLATION ALLOWANCE","SCHOLARSHIP","TRAVEL GRANT"]
["IMFSE_Y1","INSTALLATION ALLOWANCE","SCHOLARSHIP","TRAVEL GRANT"]
["IMFSE_Y2","INSTALLATION ALLOWANCE","SCHOLARSHIP","TRAVEL GRANT"]
["IMRD_1Y","INSTALLATION ALLOWANCE","SCHOLARSHIP","TRAVEL GRANT"]
["IMRD_2Y","INSTALLATION ALLOWANCE","SCHOLARSHIP","TRAVEL GRANT"]
["MARIE_CURIE","FAMILY ALLOWANCE","MATCHING MOBILITY ALLOWANCE","MOBILITY ALLOWANCE"]
["SINREM_1Y","INSTALLATION ALLOWANCE","SCHOLARSHIP","TRAVEL GRANT"]
["SINREM_2Y","INSTALLATION ALLOWANCE","SCHOLARSHIP","TRAVEL GRANT"]
["TUG_1Y","OTHER","SCHOLARSHIP","TRAVEL GRANT 1/4","TRAVEL GRANT 2/4","TRAVEL GRANT 3/4","TRAVEL GRANT 4/4"]
["TUG_2Y","OTHER","SCHOLARSHIP","TRAVEL GRANT 1/4","TRAVEL GRANT 2/4","TRAVEL GRANT 3/4","TRAVEL GRANT 4/4"]
["TUG_GEOORMERKTE_1Y","OTHER","SCHOLARSHIP","TRAVEL GRANT 1/4","TRAVEL GRANT 2/4","TRAVEL GRANT 3/4","TRAVEL GRANT 4/4"]
["TUG_GEOORMERKTE_2Y","OTHER","SCHOLARSHIP","TRAVEL GRANT 1/4","TRAVEL GRANT 2/4","TRAVEL GRANT 3/4","TRAVEL GRANT 4/4"]
["TUG_GEOORMERKTE_3Y","OTHER","SCHOLARSHIP","TRAVEL GRANT 1/4","TRAVEL GRANT 2/4","TRAVEL GRANT 3/4","TRAVEL GRANT 4/4"]
["TUG_OTHER","OTHER","SCHOLARSHIP","TRAVEL GRANT 1/4","TRAVEL GRANT 2/4","TRAVEL GRANT 3/4","TRAVEL GRANT 4/4"]
["VLIR_GLOBAL_MINDS","ACCOMODATION ALLOWANCE","AIRLINE TICKET","CONFERENCE PARTICIPATION","DIDACTIC ALLOWANCE","DIDACTIC ALLOWANCE MSC Y1","DIDACTIC ALLOWANCE MSC Y2","FAMILY SUPPLEMENT","HOTEL","INDIRECT TRAVEL COSTS","INSTALLATION ALLOWANCE","LOCAL HOTEL","LOCAL TRAVEL COSTS","MAILING ALLOWANCE","OTHER ","PER DIEM","PROGRAM RELATED TRAVEL COSTS","SCHOLARSHIP","TUITION FEE"]
["VLIR_ICP_1Y","ACCOMODATION ALLOWANCE","AIRLINE TICKET","DIDACTIC ALLOWANCE Y1","DIDACTIC ALLOWANCE Y2","FAMILY SUPPLEMENT","INDIRECT TRAVEL COSTS","INSTALLATION ALLOWANCE","MAILING ALLOWANCE","OTHER","PER DIEM","PROGRAM RELATED TRAVEL COSTS","SCHOLARSHIP","TUITION FEE"]
["VLIR_ICP_2Y","ACCOMODATION ALLOWANCE","AIRLINE TICKET","DIDACTIC ALLOWANCE Y1","DIDACTIC ALLOWANCE Y2","FAMILY SUPPLEMENT","INDIRECT TRAVEL COSTS","INSTALLATION ALLOWANCE","MAILING ALLOWANCE","OTHER","PER DIEM","PROGRAM RELATED TRAVEL COSTS","SCHOLARSHIP","TUITION FEE"]
["VLIR_ICP_3Y","ACCOMODATION ALLOWANCE","AIRLINE TICKET","DIDACTIC ALLOWANCE Y1","DIDACTIC ALLOWANCE Y2","FAMILY SUPPLEMENT","INDIRECT TRAVEL COSTS","INSTALLATION ALLOWANCE","MAILING ALLOWANCE","OTHER","PER DIEM","PROGRAM RELATED TRAVEL COSTS","SCHOLARSHIP","TUITION FEE"]
["VLIR_ICP_PHD","ACCOMODATION ALLOWANCE","AIRLINE TICKET","CONFERENCE PARTICIPATION","DIDACTIC ALLOWANCE","DIDACTIC ALLOWANCE MSC Y1","DIDACTIC ALLOWANCE MSC Y2","FAMILY SUPPLEMENT","HOTEL","INDIRECT TRAVEL COSTS","INSTALLATION ALLOWANCE","LOCAL HOTEL","LOCAL TRAVEL COSTS","MAILING ALLOWANCE","OTHER ","PER DIEM","PROGRAM RELATED TRAVEL COSTS","SCHOLARSHIP","TUITION FEE"]
["VLIR_IUC_NETWORK","ACCOMODATION ALLOWANCE","AIRLINE TICKET","CONFERENCE PARTICIPATION","DIDACTIC ALLOWANCE","DIDACTIC ALLOWANCE MSC Y1","DIDACTIC ALLOWANCE MSC Y2","FAMILY SUPPLEMENT","HOTEL","INDIRECT TRAVEL COSTS","INSTALLATION ALLOWANCE","LOCAL HOTEL","LOCAL TRAVEL COSTS","MAILING ALLOWANCE","OTHER ","PER DIEM","PROGRAM RELATED TRAVEL COSTS","SCHOLARSHIP","TUITION FEE"]
["VLIR_NGC","ACCOMODATION ALLOWANCE","AIRLINE TICKET","CONFERENCE PARTICIPATION","DIDACTIC ALLOWANCE","DIDACTIC ALLOWANCE MSC Y1","DIDACTIC ALLOWANCE MSC Y2","FAMILY SUPPLEMENT","HOTEL","INDIRECT TRAVEL COSTS","INSTALLATION ALLOWANCE","LOCAL HOTEL","LOCAL TRAVEL COSTS","MAILING ALLOWANCE","OTHER ","PER DIEM","PROGRAM RELATED TRAVEL COSTS","SCHOLARSHIP","TUITION FEE"]
["VLIR_TEAM_ZI_JOINT","ACCOMODATION ALLOWANCE","AIRLINE TICKET","CONFERENCE PARTICIPATION","DIDACTIC ALLOWANCE","DIDACTIC ALLOWANCE MSC Y1","DIDACTIC ALLOWANCE MSC Y2","FAMILY SUPPLEMENT","HOTEL","INDIRECT TRAVEL COSTS","INSTALLATION ALLOWANCE","LOCAL HOTEL","LOCAL TRAVEL COSTS","MAILING ALLOWANCE","OTHER ","PER DIEM","PROGRAM RELATED TRAVEL COSTS","SCHOLARSHIP","TUITION FEE"]

{"sheet":"ICPExtra","index":10,"n_rows":5,"n_cols":8,"rows_kept":5,"cut":false,"hidden":true,"merged":[]}
["Extra","Lookup","Lookup","Lookup","Lookup","Lookup","Lookup","Lookup"]
["EXTRAICP1Y","ICP Aquaculture (ICP Aqua)","ICP Environmental Sanitation (ICP Ensa)","ICP Nematology (ICP Nema)","ICP Nutrition and Rural Development – Human Nutrition (ICP NuRuDe)","ICP Physical Land Resources – Soil Science (ICP PLR)","ICP Food Technology (ICP FoodTech)","ICP Rural Development (ICP IMRD)"]
["EXTRAICP2Y","ICP Aquaculture (ICP Aqua)","ICP Environmental Sanitation (ICP Ensa)","ICP Nematology (ICP Nema)","ICP Nutrition and Rural Development – Human Nutrition (ICP NuRuDe)","ICP Physical Land Resources – Soil Science (ICP PLR)","ICP Food Technology (ICP FoodTech)","ICP Rural Development (ICP IMRD)"]
["EXTRAICP3Y","ICP Aquaculture (ICP Aqua)","ICP Environmental Sanitation (ICP Ensa)","ICP Nematology (ICP Nema)","ICP Nutrition and Rural Development – Human Nutrition (ICP NuRuDe)","ICP Physical Land Resources – Soil Science (ICP PLR)","ICP Food Technology (ICP FoodTech)","ICP Rural Development (ICP IMRD)"]
["EXTRAICPPHD","       ","       "]